Workbook

Sheet Počet oprav (hidden)
C1: počet oprav
C3: leden | D3: únor | E3: březen | F3: duben | G3: květen | H3: červen | I3: červenec | J3: srpen | K3: září | L3: říjen | M3: listopad | N3: prosinec
A4: Altratec | C4: 1 | D4: 0
A5: Galvanika | C5: 16 | D5: 6
A6: Arp 19 | C6: 2 | D6: 1
A7: Arp 7,9,13 | C7: 5 | D7: 4
A8: Ecm1 | C8: 6 | D8: 2
A9: Ecm2 | C9: 2 | D9: 2
A10: Chiron | C10: 1 | D10: 3
A11: Knoll5-6 | C11: 2 | D11: 1
A12: Knoll11-12
A13: Knoll31 | C13: 1
A14: Knoll16-17
A15: Knoll24-25 | C15: 1
A16: Knoll20-23 | C16: 4
A17: Knoll33-34
A18: Knoll3-32 | C18: 1 | D18: 1
A19: Knoll14-15 | C19: 1 | D19: 1
A20: Knoll29-30 | C20: 3
A21: Knoll3-32 | C21: 1
A22: Formy | C22: 3 | D22: 12
A23: Piller4 | C23: 4 | D23: 2
A24: Piller5 | C24: 5 | D24: 2
A25: Piller6 | D25: 4
A26: Piller7 | C26: 1 | D26: 2
A27: PillerThz | C27: 4 | D27: 1
A28: VTM3 | C28: 2 | D28: 6
A29: VTM5 | C29: 5 | D29: 10
A30: VTM6 | C30: 7 | D30: 2
A31: VTM7 | C31: 3 | D31: 4
A32: VTM9 | C32: 1 | D32: 4
A33: VTM11 | C33: 7 | D33: 13
A34: VTM12 | C34: 3 | D34: 12
A35: VTM13 | C35: 4 | D35: 6
A36: VTM14 | C36: 6 | D36: 7
A37: VTM15 | C37: 5 | D37: 5
A38: VTM16 | C38: 3 | D38: 10
A39: VTM17 | C39: 5 | D39: 6
A40: VTM19 | C40: 7 | D40: 2
A41: VTM20 | C41: 11 | D41: 4
A42: VTM23 | C42: 8 | D42: 6
A43: VTM24 | C43: 2 | D43: 6
A44: VTM25 | C44: 2 | D44: 9
A45: VTM29 | C45: 3 | D45: 6
A46: VTM30 | C46: 1 | D46: 7
A47: VTM31 | C47: 5 | D47: 1
A48: VTM32 | C48: 2 | D48: 5
A49: VTM33 | C49: 5 | D49: 4
A50: VTM34 | C50: 2 | D50: 4
A51: RTM | C51: 3 | D51: 3
A52: Myčka | C52: 2
A53: Neutralizace | C53: 1
A54: Ostatní | C54: 12 | D54: 7
A55: Separátor | D55: 2

Sheet GRAF VYHODNOCENÍ (hidden)
A2: Den | B2: (Vše)
A3: Měsíc | B3: (Vše)
A4: Rok | B4: (Vše)
A6: Počet z Stav stroje | B6: Popisky sloupců
A7: Popisky řádků | B7: oprava | C7: provoz | D7: stop | E7: (prázdné) | F7: Celkový součet
A8: ECM1 | C8: 1 | F8: 1
A9: RTM | B9: 2 | C9: 5 | D9: 55 | F9: 62
A10: VTM31 | D10: 1 | F10: 1
A11: M020 | B11: 1 | C11: 11 | D11: 105 | F11: 117
A12: (prázdné)
A13: TOX | D13: 2 | F13: 2
A14: SP30 | C14: 14 | F14: 14
A15: V11 | B15: 3 | C15: 13 | D15: 91 | F15: 107
A16: V31 | B16: 4 | C16: 4 | D16: 48 | F16: 56
A17: V19 | B17: 2 | C17: 3 | D17: 54 | F17: 59
A18: V15 | B18: 1 | C18: 18 | D18: 46 | F18: 65
A19: FO | C19: 123 | D19: 6 | F19: 129
A20: V20 | C20: 7 | D20: 87 | F20: 94
A21: E1 | C21: 13 | D21: 59 | F21: 72
A22: AN | C22: 163 | D22: 2 | F22: 165
A23: AN | C23: 2 | F23: 2
A24: E2 | C24: 13 | D24: 19 | F24: 32
A25: V30 | C25: 5 | D25: 62 | F25: 67
A26: V5 | C26: 8 | D26: 88 | F26: 96
A27: V16 | C27: 18 | D27: 76 | F27: 94
A28: P7 | C28: 5 | D28: 45 | F28: 50
A29: V24 | C29: 7 | D29: 31 | F29: 38
A30: V33 | C30: 8 | D30: 76 | F30: 84
A31: V12 | C31: 8 | D31: 56 | F31: 64
A32: V7 | C32: 2 | D32: 34 | F32: 36
A33: V6 | B33: 1 | C33: 3 | D33: 65 | F33: 69
A34: P5 | C34: 9 | D34: 26 | F34: 35
A35: P4 | C35: 6 | D35: 52 | F35: 58
A36: OS | C36: 146 | D36: 2 | F36: 148
A37: K29-30 | C37: 2 | D37: 9 | F37: 11
A38: K31 | C38: 1 | D38: 6 | F38: 7
A39: V23 | B39: 2 | C39: 13 | D39: 77 | F39: 92
A40: ALT | C40: 4 | D40: 23 | F40: 27
A41: V34 | C41: 6 | D41: 45 | F41: 51
A42: K3-32 | D42: 5 | F42: 5
A43: ARP+K7,9,13 | C43: 5 | D43: 29 | F43: 34
A44: ARP+K19 | D44: 21 | F44: 21
A45: K24-25 | C45: 1 | D45: 11 | F45: 12
A46: K20-23 | C46: 2 | D46: 12 | F46: 14
A47: V3 | B47: 1 | C47: 15 | D47: 42 | F47: 58
A48: K14-15 | C48: 1 | D48: 14 | F48: 15
A49: V9 | B49: 1 | C49: 2 | D49: 42 | F49: 45
A50: V25 | C50: 3 | D50: 71 | F50: 74
A51: PTHZ | B51: 2 | C51: 3 | D51: 30 | F51: 35
A52: V17 | B52: 1 | C52: 4 | D52: 60 | F52: 65
A53: V13 | C53: 3 | D53: 43 | F53: 46
A54: V14 | C54: 13 | D54: 69 | F54: 82
A55: V29 | C55: 7 | D55: 55 | F55: 62
A56: V32 | B56: 1 | C56: 7 | D56: 30 | F56: 38
A57: K5-6 | C57: 2 | D57: 25 | F57: 27
A58: CH_V | C58: 2 | D58: 2 | F58: 4
A59: P6 | C59: 11 | D59: 34 | F59: 45
A60: NE | C60: 10 | F60: 10
A61: CH | C61: 2 | D61: 14 | F61: 16
A62: SE | C62: 7 | D62: 14 | F62: 21
A63: MB | C63: 1 | D63: 3 | F63: 4
A64: KK | C64: 78 | D64: 8 | F64: 86
A65: K16-17 | C65: 1 | D65: 18 | F65: 19
A66: K33-34 | C66: 2 | D66: 10 | F66: 12
A67: OD | D67: 1 | F67: 1
A68: FR | D68: 1 | F68: 1
A69: K11-12 | C69: 1 | D69: 14 | F69: 15
A70: V19 | D70: 1 | F70: 1
A71: CH | D71: 1 | F71: 1
A72: PTHZ | D72: 2 | F72: 2
A73: V3 | D73: 1 | F73: 1
A74: SA | C74: 1 | F74: 1
A75: Celkový součet | B75: 22 | C75: 825 | D75: 2031 | F75: 2878

Sheet Evidence_opravenek
A1: Evidence opravenek PPO-O1 | G1: =TEXT(H1,"rrrr") -> 2016 | H1: =TODAY() -> 2016-12-01 | J1: =TEXT(H1,"dddd") -> čtvrtek | L1: =WEEKNUM(H1,21) ->  | M1: KW
A2: Počty | B2: převzatých | C2: otevřených | E2: uzavřených | G2: =SUBTOTAL(3,D4:D6701) -> 27 | H2: =G2-L2 -> 27 | I2: Doba mezi převzetím a začátkem práce | J2: Doba opravy stoje | K2: Celková doba prostoje stroje | L2: =SUBTOTAL(3,AH4:AH6701) -> 0 | M2: % plnění opravy | O2: 10 - 50 % | X2: 55 - 75 % | AC2: 80 - 100 %
A3: Číslo opr. | B3: Vystavení a převzetí Datum/Čas | C3: Zahájení opravy Datum/Čas | D3: Převzal opravenku | E3: Provedl opravu a předal | F3: Druh závady | G3: Stroj | H3: Specifikace závady, popis zásahu | I3: d.h.mm | J3: d.h.mm2 | K3: d.h.mm3 | L3: Poznámka mezi převzetím a začátkem opravy | M3: Stav stroje | N3: % | O3: S21 | P3: S212 | Q3: S213 | R3: S214 | S3: S215 | T3: S216 | U3: S217 | V3: S218 | W3: S219 | X3: S220 | Y3: S22 | Z3: S23 | AA3: S24 | AB3: S25 | AC3: S26 | AD3: S27 | AE3: S28 | AF3: S29 | AG3: S30 | AH3: Datum předání stroje | AI3: S1 | AJ3: S2 | AK3: 0.1 | AL3: 0.15 | AM3: 0.2 | AN3: 0.25 | AO3: 0.3 | AP3: 0.35 | AQ3: 0.4 | AR3: 0.45 | AS3: 0.5 | AT3: 0.55 | AU3: 0.6 | AV3: 0.65 | AW3: 0.7 | AX3: 0.75 | AY3: 0.8 | AZ3: 0.85 | BA3: 0.9 | BB3: 0.95 | BC3: 1
A4: 4970 | B4: 2015-12-10T16:20:00 | D4: Nedoma 330841 | F4: mechanická | G4: VTM 29 | H4: vyrovnat kostku s eicheny | I4: =Tabulka1[[#This Row],[Zahájení opravy Datum/Čas]]-Tabulka1[[#This Row],[Vystavení a převzetí Datum/Čas]] -> -42348.68056 | J4: =Tabulka1[[#This Row],[Datum předání stroje]]-Tabulka1[[#This Row],[Zahájení opravy Datum/Čas]] -> 00:00:00 | K4: =Tabulka1[[#This Row],[Datum předání stroje]]-Tabulka1[[#This Row],[Vystavení a převzetí Datum/Čas]] -> -42348.68056 | M4: provoz | N4: 0.5 | O4: =IF($N4>=0.1,"Y","") -> Y | P4: =IF($N4>=0.15,"Y","") -> Y | Q4: =IF($N4>=0.2,"Y","") -> Y | R4: =IF($N4>=0.25,"Y","") -> Y | S4: =IF($N4>=0.3,"Y","") -> Y | T4: =IF($N4>=0.35,"Y","") -> Y | U4: =IF($N4>=0.4,"Y","") -> Y | V4: =IF($N4>=0.45,"Y","") -> Y | W4: =IF($N4>=0.5,"Y","") -> Y | X4: =IF($N4>=0.55,"X","") ->  | Y4: =IF($N4>=0.6,"X","") ->  | Z4: =IF($N4>=0.65,"X","") ->  | AA4: =IF($N4>=0.7,"X","") ->  | AB4: =IF($N4>=0.75,"X","") ->  | AC4: =IF($N4>=0.8,"K","") ->  | AD4: =IF($N4>=0.85,"K","") ->  | AE4: =IF($N4>=0.9,"K","") ->  | AF4: =IF($N4>=0.95,"K","") ->  | AG4: =IF($N4>=1,"K","") ->  | AI4: elektrická
A5: 3829 | B5: 2016-06-01T12:00:00 | D5: Staněk 330605 | F5: mechanická | G5: E-ZA-VÍCE PRÁCE | H5: Doplnění hydraulických sestav o vypoštěcí ventily VTM 7,9,13,16,19,32,33,34 | I5: =Tabulka1[[#This Row],[Zahájení opravy Datum/Čas]]-Tabulka1[[#This Row],[Vystavení a převzetí Datum/Čas]] -> -42522.5 | J5: =Tabulka1[[#This Row],[Datum předání stroje]]-Tabulka1[[#This Row],[Zahájení opravy Datum/Čas]] -> 00:00:00 | K5: =Tabulka1[[#This Row],[Datum předání stroje]]-Tabulka1[[#This Row],[Vystavení a převzetí Datum/Čas]] -> -42522.5 | M5: provoz | N5: 0.5 | O5: Y | P5: Y | Q5: Y | R5: Y | S5: Y | T5: Y | U5: Y | V5: Y | W5: Y | AI5: hardware
A6: 1881 | B6: 2016-11-25T10:00:00 | D6: Staněk 330605 | F6: elektrická | G6: Annodizace | H6: nefunkční čerpadlo odmaštění č.1 nefunkční motor | I6: =Tabulka1[[#This Row],[Zahájení opravy Datum/Čas]]-Tabulka1[[#This Row],[Vystavení a převzetí Datum/Čas]] -> -42699.41667 | J6: =Tabulka1[[#This Row],[Datum předání stroje]]-Tabulka1[[#This Row],[Zahájení opravy Datum/Čas]] -> 00:00:00 | K6: =Tabulka1[[#This Row],[Datum předání stroje]]-Tabulka1[[#This Row],[Vystavení a převzetí Datum/Čas]] -> -42699.41667 | M6: provoz | N6: 0.5 | O6: Y | P6: Y | Q6: Y | R6: Y | S6: Y | T6: Y | U6: Y | V6: Y | W6: Y | AI6: hydraulická
A7: 1880 | B7: 2016-11-25T08:00:00 | D7: Staněk 330605 | F7: mechanická | G7: VTM 3 | H7: Porucha dopravníku -pojezd lineární ložiska | I7: =Tabulka1[[#This Row],[Zahájení opravy Datum/Čas]]-Tabulka1[[#This Row],[Vystavení a převzetí Datum/Čas]] -> -42699.33333 | J7: =Tabulka1[[#This Row],[Datum předání stroje]]-Tabulka1[[#This Row],[Zahájení opravy Datum/Čas]] -> 00:00:00 | K7: =Tabulka1[[#This Row],[Datum předání stroje]]-Tabulka1[[#This Row],[Vystavení a převzetí Datum/Čas]] -> -42699.33333 | M7: provoz | N7: 0.5 | O7: Y | P7: Y | Q7: Y | R7: Y | S7: Y | T7: Y | U7: Y | V7: Y | W7: Y | AI7: mechanická
A8: 1865 | B8: 2016-11-21T12:30:00 | D8: Staněk 330605 | F8: mechanická | G8: ECM 2 | H8: Nefunkční kalolis - membrána | I8: =Tabulka1[[#This Row],[Zahájení opravy Datum/Čas]]-Tabulka1[[#This Row],[Vystavení a převzetí Datum/Čas]] -> -42695.52083 | J8: =Tabulka1[[#This Row],[Datum předání stroje]]-Tabulka1[[#This Row],[Zahájení opravy Datum/Čas]] -> 00:00:00 | K8: =Tabulka1[[#This Row],[Datum předání stroje]]-Tabulka1[[#This Row],[Vystavení a převzetí Datum/Čas]] -> -42695.52083 | M8: stop | N8: 0.1 | O8: Y | AI8: software data
A9: 1862 | B9: 2016-11-21T10:30:00 | D9: Pavelka 331117 | F9: mechanická | G9: E-ZA-VÍCE PRÁCE | H9: ulomené panty na bedně na zmetky | I9: =Tabulka1[[#This Row],[Zahájení opravy Datum/Čas]]-Tabulka1[[#This Row],[Vystavení a převzetí Datum/Čas]] -> -42695.4375 | J9: =Tabulka1[[#This Row],[Datum předání stroje]]-Tabulka1[[#This Row],[Zahájení opravy Datum/Čas]] -> 00:00:00 | K9: =Tabulka1[[#This Row],[Datum předání stroje]]-Tabulka1[[#This Row],[Vystavení a převzetí Datum/Čas]] -> -42695.4375 | M9: provoz | N9: 0.5 | O9: Y | P9: Y | Q9: Y | R9: Y | S9: Y | T9: Y | U9: Y | V9: Y | W9: Y
A10: 1854 | B10: 2016-11-18T13:00:00 | D10: Polan 330303 | F10: mechanická | G10: Piller 6 | H10: kape voda do záchytné vany | I10: =Tabulka1[[#This Row],[Zahájení opravy Datum/Čas]]-Tabulka1[[#This Row],[Vystavení a převzetí Datum/Čas]] -> -42692.54167 | J10: =Tabulka1[[#This Row],[Datum předání stroje]]-Tabulka1[[#This Row],[Zahájení opravy Datum/Čas]] -> 00:00:00 | K10: =Tabulka1[[#This Row],[Datum předání stroje]]-Tabulka1[[#This Row],[Vystavení a převzetí Datum/Čas]] -> -42692.54167 | M10: provoz | N10: 0.5 | O10: Y | P10: Y | Q10: Y | R10: Y | S10: Y | T10: Y | U10: Y | V10: Y | W10: Y
A11: 1843 | B11: 2016-11-15T10:00:00 | D11: Staněk 330605 | F11: elektrická | G11: E-QWE09022-14/1 | H11: nefunkční čidla forma 1 a 2 | I11: =Tabulka1[[#This Row],[Zahájení opravy Datum/Čas]]-Tabulka1[[#This Row],[Vystavení a převzetí Datum/Čas]] -> -42689.41667 | J11: =Tabulka1[[#This Row],[Datum předání stroje]]-Tabulka1[[#This Row],[Zahájení opravy Datum/Čas]] -> 00:00:00 | K11: =Tabulka1[[#This Row],[Datum předání stroje]]-Tabulka1[[#This Row],[Vystavení a převzetí Datum/Čas]] -> -42689.41667 | M11: stop | N11: 0.1 | O11: Y
A12: 1842 | B12: 2016-11-15T09:30:00 | D12: Staněk 330605 | F12: mechanická | G12: E-VÍCE PRÁCE NA KK | H12: úprava paletky pro lepší položení dílu | I12: =Tabulka1[[#This Row],[Zahájení opravy Datum/Čas]]-Tabulka1[[#This Row],[Vystavení a převzetí Datum/Čas]] -> -42689.39583 | J12: =Tabulka1[[#This Row],[Datum předání stroje]]-Tabulka1[[#This Row],[Zahájení opravy Datum/Čas]] -> 00:00:00 | K12: =Tabulka1[[#This Row],[Datum předání stroje]]-Tabulka1[[#This Row],[Vystavení a převzetí Datum/Čas]] -> -42689.39583 | M12: provoz | N12: 0.5 | O12: Y | P12: Y | Q12: Y | R12: Y | S12: Y | T12: Y | U12: Y | V12: Y | W12: Y | AI12: Ex.firma plánovaně
A13: 1834 | B13: 2016-11-14T13:00:00 | D13: Staněk 330605 | F13: mechanická | G13: E-QWE09022-9/27 | H13: vadný doraz na díly rorma č 22-9 | I13: =Tabulka1[[#This Row],[Zahájení opravy Datum/Čas]]-Tabulka1[[#This Row],[Vystavení a převzetí Datum/Čas]] -> -42688.54167 | J13: =Tabulka1[[#This Row],[Datum předání stroje]]-Tabulka1[[#This Row],[Zahájení opravy Datum/Čas]] -> 00:00:00 | K13: =Tabulka1[[#This Row],[Datum předání stroje]]-Tabulka1[[#This Row],[Vystavení a převzetí Datum/Čas]] -> -42688.54167 | M13: stop | N13: 0.1 | O13: Y | AI13: ex.firma provoz
A14: 1832 | B14: 2016-11-14T10:00:00 | D14: Staněk 330605 | F14: elektrická | G14: Knoll 24-25 | H14: hladina emulze | I14: =Tabulka1[[#This Row],[Zahájení opravy Datum/Čas]]-Tabulka1[[#This Row],[Vystavení a převzetí Datum/Čas]] -> -42688.41667 | J14: =Tabulka1[[#This Row],[Datum předání stroje]]-Tabulka1[[#This Row],[Zahájení opravy Datum/Čas]] -> 00:00:00 | K14: =Tabulka1[[#This Row],[Datum předání stroje]]-Tabulka1[[#This Row],[Vystavení a převzetí Datum/Čas]] -> -42688.41667 | M14: provoz | N14: 0.5 | O14: Y | P14: Y | Q14: Y | R14: Y | S14: Y | T14: Y | U14: Y | V14: Y | W14: Y | AI14: ex.firma stop
A15: 1816 | B15: 2016-11-11T02:00:00 | D15: Lejček 330479 | F15: mechanická | G15: VTM 9 | H15: Není trubička na oplach dveří (neustále ucpané dveře) | I15: =Tabulka1[[#This Row],[Zahájení opravy Datum/Čas]]-Tabulka1[[#This Row],[Vystavení a převzetí Datum/Čas]] -> -42685.08333 | J15: =Tabulka1[[#This Row],[Datum předání stroje]]-Tabulka1[[#This Row],[Zahájení opravy Datum/Čas]] -> 00:00:00 | K15: =Tabulka1[[#This Row],[Datum předání stroje]]-Tabulka1[[#This Row],[Vystavení a převzetí Datum/Čas]] -> -42685.08333 | M15: provoz | N15: 0.5 | O15: Y | P15: Y | Q15: Y | R15: Y | S15: Y | T15: Y | U15: Y | V15: Y | W15: Y | AI15: planovaná oprava
A16: 1815 | B16: 2016-11-11T08:00:00 | D16: Staněk 330605 | F16: elektrická | G16: E-ZA-VÍCE PRÁCE | H16: přidat osvětlení VTM 32,28 a úprava na VTM 31 | I16: =Tabulka1[[#This Row],[Zahájení opravy Datum/Čas]]-Tabulka1[[#This Row],[Vystavení a převzetí Datum/Čas]] -> -42685.33333 | J16: =Tabulka1[[#This Row],[Datum předání stroje]]-Tabulka1[[#This Row],[Zahájení opravy Datum/Čas]] -> 00:00:00 | K16: =Tabulka1[[#This Row],[Datum předání stroje]]-Tabulka1[[#This Row],[Vystavení a převzetí Datum/Čas]] -> -42685.33333 | M16: provoz | N16: 0.5 | O16: Y | P16: Y | Q16: Y | R16: Y | S16: Y | T16: Y | U16: Y | V16: Y | W16: Y | AI16: provoz
A17: 1811 | B17: 2016-11-10T17:00:00 | D17: Nedoma 330841 | F17: elektrická | G17: VTM 31 | H17: po nutí modrého klíčku se vřetena točí | I17: =Tabulka1[[#This Row],[Zahájení opravy Datum/Čas]]-Tabulka1[[#This Row],[Vystavení a převzetí Datum/Čas]] -> -42684.70833 | J17: =Tabulka1[[#This Row],[Datum předání stroje]]-Tabulka1[[#This Row],[Zahájení opravy Datum/Čas]] -> 00:00:00 | K17: =Tabulka1[[#This Row],[Datum předání stroje]]-Tabulka1[[#This Row],[Vystavení a převzetí Datum/Čas]] -> -42684.70833 | M17: provoz | N17: 0.5 | O17: Y | P17: Y | Q17: Y | R17: Y | S17: Y | T17: Y | U17: Y | V17: Y | W17: Y | AI17: stop
A18: 1795 | B18: 2016-11-08T05:00:00 | D18: Sklenář 330304 | F18: mechanická | G18: E-QWE09021-15/33 | H18: forma 33 vyhazuje díly | I18: =Tabulka1[[#This Row],[Zahájení opravy Datum/Čas]]-Tabulka1[[#This Row],[Vystavení a převzetí Datum/Čas]] -> -42682.20833 | J18: =Tabulka1[[#This Row],[Datum předání stroje]]-Tabulka1[[#This Row],[Zahájení opravy Datum/Čas]] -> 00:00:00 | K18: =Tabulka1[[#This Row],[Datum předání stroje]]-Tabulka1[[#This Row],[Vystavení a převzetí Datum/Čas]] -> -42682.20833 | M18: stop | N18: 0.1 | O18: Y | AI18: stop/provoz
A19: 1756 | B19: 2016-11-01T16:30:00 | D19: Polan 330303 | F19: elektrická | G19: VTM 19 | H19: porucha stroje - porucha klimatizace | I19: =Tabulka1[[#This Row],[Zahájení opravy Datum/Čas]]-Tabulka1[[#This Row],[Vystavení a převzetí Datum/Čas]] -> -42675.6875 | J19: =Tabulka1[[#This Row],[Datum předání stroje]]-Tabulka1[[#This Row],[Zahájení opravy Datum/Čas]] -> 00:00:00 | K19: =Tabulka1[[#This Row],[Datum předání stroje]]-Tabulka1[[#This Row],[Vystavení a převzetí Datum/Čas]] -> -42675.6875 | M19: provoz | N19: 0.5 | O19: Y | P19: Y | Q19: Y | R19: Y | S19: Y | T19: Y | U19: Y | V19: Y | W19: Y
A20: 1726 | B20: 2016-10-26T07:00:00 | D20: Lejček 330479 | F20: elektrická | G20: Altratec | H20: špatné kodování kamera | I20: =Tabulka1[[#This Row],[Zahájení opravy Datum/Čas]]-Tabulka1[[#This Row],[Vystavení a převzetí Datum/Čas]] -> -42669.29167 | J20: =Tabulka1[[#This Row],[Datum předání stroje]]-Tabulka1[[#This Row],[Zahájení opravy Datum/Čas]] -> 00:00:00 | K20: =Tabulka1[[#This Row],[Datum předání stroje]]-Tabulka1[[#This Row],[Vystavení a převzetí Datum/Čas]] -> -42669.29167 | M20: provoz | N20: 0.1 | O20: Y | AI20: Altratec
A21: 1708 | B21: 2016-10-24T08:30:00 | D21: Staněk 330605 | F21: elektrická | G21: VTM 14 | H21: nefunkční dopouštění emulze | I21: =Tabulka1[[#This Row],[Zahájení opravy Datum/Čas]]-Tabulka1[[#This Row],[Vystavení a převzetí Datum/Čas]] -> -42667.35417 | J21: =Tabulka1[[#This Row],[Datum předání stroje]]-Tabulka1[[#This Row],[Zahájení opravy Datum/Čas]] -> 00:00:00 | K21: =Tabulka1[[#This Row],[Datum předání stroje]]-Tabulka1[[#This Row],[Vystavení a převzetí Datum/Čas]] -> -42667.35417 | M21: provoz | N21: 0.5 | O21: Y | P21: Y | Q21: Y | R21: Y | S21: Y | T21: Y | U21: Y | V21: Y | W21: Y | AI21: Annodizace
A22: 1698 | B22: 2016-10-21T23:45:00 | D22: Lejček 330479 | F22: mechanická | G22: RTM | H22: utržené poškozené krycí plechy kanál 5,6 | I22: =Tabulka1[[#This Row],[Zahájení opravy Datum/Čas]]-Tabulka1[[#This Row],[Vystavení a převzetí Datum/Čas]] -> -42664.98958 | J22: =Tabulka1[[#This Row],[Datum předání stroje]]-Tabulka1[[#This Row],[Zahájení opravy Datum/Čas]] -> 00:00:00 | K22: =Tabulka1[[#This Row],[Datum předání stroje]]-Tabulka1[[#This Row],[Vystavení a převzetí Datum/Čas]] -> -42664.98958 | M22: provoz | N22: 0.5 | O22: Y | P22: Y | Q22: Y | R22: Y | S22: Y | T22: Y | U22: Y | V22: Y | W22: Y | AI22: ARP 19-RTM
A23: 1689 | B23: 2016-10-20T14:30:00 | D23: Staněk 330605 | F23: mechanická | G23: Vysavač | H23: prasklá hadice | I23: =Tabulka1[[#This Row],[Zahájení opravy Datum/Čas]]-Tabulka1[[#This Row],[Vystavení a převzetí Datum/Čas]] -> -42663.60417 | J23: =Tabulka1[[#This Row],[Datum předání stroje]]-Tabulka1[[#This Row],[Zahájení opravy Datum/Čas]] -> 00:00:00 | K23: =Tabulka1[[#This Row],[Datum předání stroje]]-Tabulka1[[#This Row],[Vystavení a převzetí Datum/Čas]] -> -42663.60417 | M23: provoz | N23: 0.5 | O23: Y | P23: Y | Q23: Y | R23: Y | S23: Y | T23: Y | U23: Y | V23: Y | W23: Y | AI23: ARP 7-9-13
A24: 1672 | B24: 2016-10-18T06:30:00 | D24: Lejček 330479 | F24: elektrická | G24: Altratec | H24: Špatné kodování | I24: =Tabulka1[[#This Row],[Zahájení opravy Datum/Čas]]-Tabulka1[[#This Row],[Vystavení a převzetí Datum/Čas]] -> -42661.27083 | J24: =Tabulka1[[#This Row],[Datum předání stroje]]-Tabulka1[[#This Row],[Zahájení opravy Datum/Čas]] -> 00:00:00 | K24: =Tabulka1[[#This Row],[Datum předání stroje]]-Tabulka1[[#This Row],[Vystavení a převzetí Datum/Čas]] -> -42661.27083 | M24: provoz | N24: 0.5 | O24: Y | P24: Y | Q24: Y | R24: Y | S24: Y | T24: Y | U24: Y | V24: Y | W24: Y | AI24: Automat ZA - KK
A25: 1594 | B25: 2016-09-29T13:00:00 | D25: Staněk 330605 | F25: mechanická | G25: Annodizace | H25: Nětěsnost třícestného ventilu horkého oplachu vypouštěcí ventil | I25: =Tabulka1[[#This Row],[Zahájení opravy Datum/Čas]]-Tabulka1[[#This Row],[Vystavení a převzetí Datum/Čas]] -> -42642.54167 | J25: =Tabulka1[[#This Row],[Datum předání stroje]]-Tabulka1[[#This Row],[Zahájení opravy Datum/Čas]] -> 00:00:00 | K25: =Tabulka1[[#This Row],[Datum předání stroje]]-Tabulka1[[#This Row],[Vystavení a převzetí Datum/Čas]] -> -42642.54167 | M25: provoz | N25: 0.5 | O25: Y | P25: Y | Q25: Y | R25: Y | S25: Y | T25: Y | U25: Y | V25: Y | W25: Y | AI25: ECM 1
A26: 1548 | B26: 2016-09-21T15:30:00 | D26: Staněk 330605 | F26: mechanická | G26: VTM 5 | H26: únik kapaliny z chlazení stroje (klimatizace) | I26: =Tabulka1[[#This Row],[Zahájení opravy Datum/Čas]]-Tabulka1[[#This Row],[Vystavení a převzetí Datum/Čas]] -> -42634.64583 | J26: =Tabulka1[[#This Row],[Datum předání stroje]]-Tabulka1[[#This Row],[Zahájení opravy Datum/Čas]] -> 00:00:00 | K26: =Tabulka1[[#This Row],[Datum předání stroje]]-Tabulka1[[#This Row],[Vystavení a převzetí Datum/Čas]] -> -42634.64583 | M26: provoz | N26: 0.5 | O26: Y | P26: Y | Q26: Y | R26: Y | S26: Y | T26: Y | U26: Y | V26: Y | W26: Y | AI26: ECM 2
A27: 1356 | B27: 2016-08-15T15:30:00 | D27: Staněk 330605 | F27: mechanická | G27: VTM 16 | H27: Odpojená čidla na paletky - zapojit/ nutné zastabilizovat uchycení čidel | I27: =Tabulka1[[#This Row],[Zahájení opravy Datum/Čas]]-Tabulka1[[#This Row],[Vystavení a převzetí Datum/Čas]] -> -42597.64583 | J27: =Tabulka1[[#This Row],[Datum předání stroje]]-Tabulka1[[#This Row],[Zahájení opravy Datum/Čas]] -> 00:00:00 | K27: =Tabulka1[[#This Row],[Datum předání stroje]]-Tabulka1[[#This Row],[Vystavení a převzetí Datum/Čas]] -> -42597.64583 | M27: provoz | N27: 0.5 | O27: Y | P27: Y | Q27: Y | R27: Y | S27: Y | T27: Y | U27: Y | V27: Y | W27: Y | AI27: E-ANOD-VÍCE PRÁCE
A28: 752 | B28: 2016-05-13T04:30:00 | D28: Nedoma 330841 | F28: mechanická | G28: RTM | H28: Porucha krycího plechu kanál č6 | I28: =Tabulka1[[#This Row],[Zahájení opravy Datum/Čas]]-Tabulka1[[#This Row],[Vystavení a převzetí Datum/Čas]] -> -42503.1875 | J28: =Tabulka1[[#This Row],[Datum předání stroje]]-Tabulka1[[#This Row],[Zahájení opravy Datum/Čas]] -> 00:00:00 | K28: =Tabulka1[[#This Row],[Datum předání stroje]]-Tabulka1[[#This Row],[Vystavení a převzetí Datum/Čas]] -> -42503.1875 | M28: provoz | N28: 0.5 | O28: Y | P28: Y | Q28: Y | R28: Y | S28: Y | T28: Y | U28: Y | V28: Y | W28: Y | AI28: E-MYTÍ STROJŮ
A29: 435 | B29: 2016-03-15T09:30:00 | D29: Staněk 330605 | F29: mechanická | G29: E-ZA-VÍCE PRÁCE | H29: Výměnit matice k sítkům na knollech VTM stržené | I29: =Tabulka1[[#This Row],[Zahájení opravy Datum/Čas]]-Tabulka1[[#This Row],[Vystavení a převzetí Datum/Čas]] -> -42444.39583 | J29: =Tabulka1[[#This Row],[Datum předání stroje]]-Tabulka1[[#This Row],[Zahájení opravy Datum/Čas]] -> 00:00:00 | K29: =Tabulka1[[#This Row],[Datum předání stroje]]-Tabulka1[[#This Row],[Vystavení a převzetí Datum/Čas]] -> -42444.39583 | M29: provoz | N29: 0.5 | O29: Y | P29: Y | Q29: Y | R29: Y | S29: Y | T29: Y | U29: Y | V29: Y | W29: Y | AI29: E-PRÁCE NA DÍLNĚ
B30: 2016-10-12 | D30: Nedoma 330841 | F30: mechanická | G30: Piller 6 | H30: Nesaje vodu vypíná se | I30: =Tabulka1[[#This Row],[Zahájení opravy Datum/Čas]]-Tabulka1[[#This Row],[Vystavení a převzetí Datum/Čas]] -> -42655 | J30: =Tabulka1[[#This Row],[Datum předání stroje]]-Tabulka1[[#This Row],[Zahájení opravy Datum/Čas]] -> 00:00:00 | K30: =Tabulka1[[#This Row],[Datum předání stroje]]-Tabulka1[[#This Row],[Vystavení a převzetí Datum/Čas]] -> -42655 | M30: provoz | N30: 0.5 | O30: Y | P30: Y | Q30: Y | R30: Y | S30: Y | T30: Y | U30: Y | V30: Y | W30: Y | AI30: E-QWE09021-1/36
I31: =Tabulka1[[#This Row],[Zahájení opravy Datum/Čas]]-Tabulka1[[#This Row],[Vystavení a převzetí Datum/Čas]] -> 00:00:00 | J31: =Tabulka1[[#This Row],[Datum předání stroje]]-Tabulka1[[#This Row],[Zahájení opravy Datum/Čas]] -> 00:00:00 | K31: =Tabulka1[[#This Row],[Datum předání stroje]]-Tabulka1[[#This Row],[Vystavení a převzetí Datum/Čas]] -> 00:00:00 | AI31: E-QWE09021-11/16
I32: =Tabulka1[[#This Row],[Zahájení opravy Datum/Čas]]-Tabulka1[[#This Row],[Vystavení a převzetí Datum/Čas]] -> 00:00:00 | J32: =Tabulka1[[#This Row],[Datum předání stroje]]-Tabulka1[[#This Row],[Zahájení opravy Datum/Čas]] -> 00:00:00 | K32: =Tabulka1[[#This Row],[Datum předání stroje]]-Tabulka1[[#This Row],[Vystavení a převzetí Datum/Čas]] -> 00:00:00 | AI32: E-QWE09021-12/13
I33: =Tabulka1[[#This Row],[Zahájení opravy Datum/Čas]]-Tabulka1[[#This Row],[Vystavení a převzetí Datum/Čas]] -> 00:00:00 | J33: =Tabulka1[[#This Row],[Datum předání stroje]]-Tabulka1[[#This Row],[Zahájení opravy Datum/Čas]] -> 00:00:00 | K33: =Tabulka1[[#This Row],[Datum předání stroje]]-Tabulka1[[#This Row],[Vystavení a převzetí Datum/Čas]] -> 00:00:00 | AI33: E-QWE09021-14/35
I34: =Tabulka1[[#This Row],[Zahájení opravy Datum/Čas]]-Tabulka1[[#This Row],[Vystavení a převzetí Datum/Čas]] -> 00:00:00 | J34: =Tabulka1[[#This Row],[Datum předání stroje]]-Tabulka1[[#This Row],[Zahájení opravy Datum/Čas]] -> 00:00:00 | K34: =Tabulka1[[#This Row],[Datum předání stroje]]-Tabulka1[[#This Row],[Vystavení a převzetí Datum/Čas]] -> 00:00:00 | AI34: E-QWE09021-15/33
I35: =Tabulka1[[#This Row],[Zahájení opravy Datum/Čas]]-Tabulka1[[#This Row],[Vystavení a převzetí Datum/Čas]] -> 00:00:00 | J35: =Tabulka1[[#This Row],[Datum předání stroje]]-Tabulka1[[#This Row],[Zahájení opravy Datum/Čas]] -> 00:00:00 | K35: =Tabulka1[[#This Row],[Datum předání stroje]]-Tabulka1[[#This Row],[Vystavení a převzetí Datum/Čas]] -> 00:00:00 | AI35: E-QWE09021-16/26
I36: =Tabulka1[[#This Row],[Zahájení opravy Datum/Čas]]-Tabulka1[[#This Row],[Vystavení a převzetí Datum/Čas]] -> 00:00:00 | J36: =Tabulka1[[#This Row],[Datum předání stroje]]-Tabulka1[[#This Row],[Zahájení opravy Datum/Čas]] -> 00:00:00 | K36: =Tabulka1[[#This Row],[Datum předání stroje]]-Tabulka1[[#This Row],[Vystavení a převzetí Datum/Čas]] -> 00:00:00 | AI36: E-QWE09021-2/28
I37: =Tabulka1[[#This Row],[Zahájení opravy Datum/Čas]]-Tabulka1[[#This Row],[Vystavení a převzetí Datum/Čas]] -> 00:00:00 | J37: =Tabulka1[[#This Row],[Datum předání stroje]]-Tabulka1[[#This Row],[Zahájení opravy Datum/Čas]] -> 00:00:00 | K37: =Tabulka1[[#This Row],[Datum předání stroje]]-Tabulka1[[#This Row],[Vystavení a převzetí Datum/Čas]] -> 00:00:00 | AI37: E-QWE09021-3/17
I38: =Tabulka1[[#This Row],[Zahájení opravy Datum/Čas]]-Tabulka1[[#This Row],[Vystavení a převzetí Datum/Čas]] -> 00:00:00 | J38: =Tabulka1[[#This Row],[Datum předání stroje]]-Tabulka1[[#This Row],[Zahájení opravy Datum/Čas]] -> 00:00:00 | K38: =Tabulka1[[#This Row],[Datum předání stroje]]-Tabulka1[[#This Row],[Vystavení a převzetí Datum/Čas]] -> 00:00:00 | AI38: E-QWE09021-4/32
I39: =Tabulka1[[#This Row],[Zahájení opravy Datum/Čas]]-Tabulka1[[#This Row],[Vystavení a převzetí Datum/Čas]] -> 00:00:00 | J39: =Tabulka1[[#This Row],[Datum předání stroje]]-Tabulka1[[#This Row],[Zahájení opravy Datum/Čas]] -> 00:00:00 | K39: =Tabulka1[[#This Row],[Datum předání stroje]]-Tabulka1[[#This Row],[Vystavení a převzetí Datum/Čas]] -> 00:00:00 | AI39: E-QWE09021-5/18
I40: =Tabulka1[[#This Row],[Zahájení opravy Datum/Čas]]-Tabulka1[[#This Row],[Vystavení a převzetí Datum/Čas]] -> 00:00:00 | J40: =Tabulka1[[#This Row],[Datum předání stroje]]-Tabulka1[[#This Row],[Zahájení opravy Datum/Čas]] -> 00:00:00 | K40: =Tabulka1[[#This Row],[Datum předání stroje]]-Tabulka1[[#This Row],[Vystavení a převzetí Datum/Čas]] -> 00:00:00 | AI40: E-QWE09021-6/7
I41: =Tabulka1[[#This Row],[Zahájení opravy Datum/Čas]]-Tabulka1[[#This Row],[Vystavení a převzetí Datum/Čas]] -> 00:00:00 | J41: =Tabulka1[[#This Row],[Datum předání stroje]]-Tabulka1[[#This Row],[Zahájení opravy Datum/Čas]] -> 00:00:00 | K41: =Tabulka1[[#This Row],[Datum předání stroje]]-Tabulka1[[#This Row],[Vystavení a převzetí Datum/Čas]] -> 00:00:00 | AI41: E-QWE09021-7/14
I42: =Tabulka1[[#This Row],[Zahájení opravy Datum/Čas]]-Tabulka1[[#This Row],[Vystavení a převzetí Datum/Čas]] -> 00:00:00 | J42: =Tabulka1[[#This Row],[Datum předání stroje]]-Tabulka1[[#This Row],[Zahájení opravy Datum/Čas]] -> 00:00:00 | K42: =Tabulka1[[#This Row],[Datum předání stroje]]-Tabulka1[[#This Row],[Vystavení a převzetí Datum/Čas]] -> 00:00:00 | AI42: E-QWE09021-8/2
I43: =Tabulka1[[#This Row],[Zahájení opravy Datum/Čas]]-Tabulka1[[#This Row],[Vystavení a převzetí Datum/Čas]] -> 00:00:00 | J43: =Tabulka1[[#This Row],[Datum předání stroje]]-Tabulka1[[#This Row],[Zahájení opravy Datum/Čas]] -> 00:00:00 | K43: =Tabulka1[[#This Row],[Datum předání stroje]]-Tabulka1[[#This Row],[Vystavení a převzetí Datum/Čas]] -> 00:00:00 | AI43: E-QWE09022 / 8
I44: =Tabulka1[[#This Row],[Zahájení opravy Datum/Čas]]-Tabulka1[[#This Row],[Vystavení a převzetí Datum/Čas]] -> 00:00:00 | J44: =Tabulka1[[#This Row],[Datum předání stroje]]-Tabulka1[[#This Row],[Zahájení opravy Datum/Čas]] -> 00:00:00 | K44: =Tabulka1[[#This Row],[Datum předání stroje]]-Tabulka1[[#This Row],[Vystavení a převzetí Datum/Čas]] -> 00:00:00 | AI44: E-QWE09022-1/34
I45: =Tabulka1[[#This Row],[Zahájení opravy Datum/Čas]]-Tabulka1[[#This Row],[Vystavení a převzetí Datum/Čas]] -> 00:00:00 | J45: =Tabulka1[[#This Row],[Datum předání stroje]]-Tabulka1[[#This Row],[Zahájení opravy Datum/Čas]] -> 00:00:00 | K45: =Tabulka1[[#This Row],[Datum předání stroje]]-Tabulka1[[#This Row],[Vystavení a převzetí Datum/Čas]] -> 00:00:00 | AI45: E-QWE09022-10/12
I46: =Tabulka1[[#This Row],[Zahájení opravy Datum/Čas]]-Tabulka1[[#This Row],[Vystavení a převzetí Datum/Čas]] -> 00:00:00 | J46: =Tabulka1[[#This Row],[Datum předání stroje]]-Tabulka1[[#This Row],[Zahájení opravy Datum/Čas]] -> 00:00:00 | K46: =Tabulka1[[#This Row],[Datum předání stroje]]-Tabulka1[[#This Row],[Vystavení a převzetí Datum/Čas]] -> 00:00:00 | AI46: E-QWE09022-11/3
I47: =Tabulka1[[#This Row],[Zahájení opravy Datum/Čas]]-Tabulka1[[#This Row],[Vystavení a převzetí Datum/Čas]] -> 00:00:00 | J47: =Tabulka1[[#This Row],[Datum předání stroje]]-Tabulka1[[#This Row],[Zahájení opravy Datum/Čas]] -> 00:00:00 | K47: =Tabulka1[[#This Row],[Datum předání stroje]]-Tabulka1[[#This Row],[Vystavení a převzetí Datum/Čas]] -> 00:00:00 | AI47: E-QWE09022-12/24
I48: =Tabulka1[[#This Row],[Zahájení opravy Datum/Čas]]-Tabulka1[[#This Row],[Vystavení a převzetí Datum/Čas]] -> 00:00:00 | J48: =Tabulka1[[#This Row],[Datum předání stroje]]-Tabulka1[[#This Row],[Zahájení opravy Datum/Čas]] -> 00:00:00 | K48: =Tabulka1[[#This Row],[Datum předání stroje]]-Tabulka1[[#This Row],[Vystavení a převzetí Datum/Čas]] -> 00:00:00 | AI48: E-QWE09022-13/30
I49: =Tabulka1[[#This Row],[Zahájení opravy Datum/Čas]]-Tabulka1[[#This Row],[Vystavení a převzetí Datum/Čas]] -> 00:00:00 | J49: =Tabulka1[[#This Row],[Datum předání stroje]]-Tabulka1[[#This Row],[Zahájení opravy Datum/Čas]] -> 00:00:00 | K49: =Tabulka1[[#This Row],[Datum předání stroje]]-Tabulka1[[#This Row],[Vystavení a převzetí Datum/Čas]] -> 00:00:00 | AI49: E-QWE09022-14/1
I50: =Tabulka1[[#This Row],[Zahájení opravy Datum/Čas]]-Tabulka1[[#This Row],[Vystavení a převzetí Datum/Čas]] -> 00:00:00 | J50: =Tabulka1[[#This Row],[Datum předání stroje]]-Tabulka1[[#This Row],[Zahájení opravy Datum/Čas]] -> 00:00:00 | K50: =Tabulka1[[#This Row],[Datum předání stroje]]-Tabulka1[[#This Row],[Vystavení a převzetí Datum/Čas]] -> 00:00:00 | AI50: E-QWE09022-15/4
I51: =Tabulka1[[#This Row],[Zahájení opravy Datum/Čas]]-Tabulka1[[#This Row],[Vystavení a převzetí Datum/Čas]] -> 00:00:00 | J51: =Tabulka1[[#This Row],[Datum předání stroje]]-Tabulka1[[#This Row],[Zahájení opravy Datum/Čas]] -> 00:00:00 | K51: =Tabulka1[[#This Row],[Datum předání stroje]]-Tabulka1[[#This Row],[Vystavení a převzetí Datum/Čas]] -> 00:00:00 | AI51: E-QWE09022-16/21
I52: =Tabulka1[[#This Row],[Zahájení opravy Datum/Čas]]-Tabulka1[[#This Row],[Vystavení a převzetí Datum/Čas]] -> 00:00:00 | J52: =Tabulka1[[#This Row],[Datum předání stroje]]-Tabulka1[[#This Row],[Zahájení opravy Datum/Čas]] -> 00:00:00 | K52: =Tabulka1[[#This Row],[Datum předání stroje]]-Tabulka1[[#This Row],[Vystavení a převzetí Datum/Čas]] -> 00:00:00 | AI52: E-QWE09022-2/11
I53: =Tabulka1[[#This Row],[Zahájení opravy Datum/Čas]]-Tabulka1[[#This Row],[Vystavení a převzetí Datum/Čas]] -> 00:00:00 | J53: =Tabulka1[[#This Row],[Datum předání stroje]]-Tabulka1[[#This Row],[Zahájení opravy Datum/Čas]] -> 00:00:00 | K53: =Tabulka1[[#This Row],[Datum předání stroje]]-Tabulka1[[#This Row],[Vystavení a převzetí Datum/Čas]] -> 00:00:00 | AI53: E-QWE09022-3/25
I54: =Tabulka1[[#This Row],[Zahájení opravy Datum/Čas]]-Tabulka1[[#This Row],[Vystavení a převzetí Datum/Čas]] -> 00:00:00 | J54: =Tabulka1[[#This Row],[Datum předání stroje]]-Tabulka1[[#This Row],[Zahájení opravy Datum/Čas]] -> 00:00:00 | K54: =Tabulka1[[#This Row],[Datum předání stroje]]-Tabulka1[[#This Row],[Vystavení a převzetí Datum/Čas]] -> 00:00:00 | AI54: E-QWE09022-4/10
I55: =Tabulka1[[#This Row],[Zahájení opravy Datum/Čas]]-Tabulka1[[#This Row],[Vystavení a převzetí Datum/Čas]] -> 00:00:00 | J55: =Tabulka1[[#This Row],[Datum předání stroje]]-Tabulka1[[#This Row],[Zahájení opravy Datum/Čas]] -> 00:00:00 | K55: =Tabulka1[[#This Row],[Datum předání stroje]]-Tabulka1[[#This Row],[Vystavení a převzetí Datum/Čas]] -> 00:00:00 | AI55: E-QWE09022-5/31
I56: =Tabulka1[[#This Row],[Zahájení opravy Datum/Čas]]-Tabulka1[[#This Row],[Vystavení a převzetí Datum/Čas]] -> 00:00:00 | J56: =Tabulka1[[#This Row],[Datum předání stroje]]-Tabulka1[[#This Row],[Zahájení opravy Datum/Čas]] -> 00:00:00 | K56: =Tabulka1[[#This Row],[Datum předání stroje]]-Tabulka1[[#This Row],[Vystavení a převzetí Datum/Čas]] -> 00:00:00 | AI56: E-QWE09022-6/15
I57: =Tabulka1[[#This Row],[Zahájení opravy Datum/Čas]]-Tabulka1[[#This Row],[Vystavení a převzetí Datum/Čas]] -> 00:00:00 | J57: =Tabulka1[[#This Row],[Datum předání stroje]]-Tabulka1[[#This Row],[Zahájení opravy Datum/Čas]] -> 00:00:00 | K57: =Tabulka1[[#This Row],[Datum předání stroje]]-Tabulka1[[#This Row],[Vystavení a převzetí Datum/Čas]] -> 00:00:00 | AI57: E-QWE09022-7/29
I58: =Tabulka1[[#This Row],[Zahájení opravy Datum/Čas]]-Tabulka1[[#This Row],[Vystavení a převzetí Datum/Čas]] -> 00:00:00 | J58: =Tabulka1[[#This Row],[Datum předání stroje]]-Tabulka1[[#This Row],[Zahájení opravy Datum/Čas]] -> 00:00:00 | K58: =Tabulka1[[#This Row],[Datum předání stroje]]-Tabulka1[[#This Row],[Vystavení a převzetí Datum/Čas]] -> 00:00:00 | AI58: E-QWE09022-8/9
I59: =Tabulka1[[#This Row],[Zahájení opravy Datum/Čas]]-Tabulka1[[#This Row],[Vystavení a převzetí Datum/Čas]] -> 00:00:00 | J59: =Tabulka1[[#This Row],[Datum předání stroje]]-Tabulka1[[#This Row],[Zahájení opravy Datum/Čas]] -> 00:00:00 | K59: =Tabulka1[[#This Row],[Datum předání stroje]]-Tabulka1[[#This Row],[Vystavení a převzetí Datum/Čas]] -> 00:00:00 | AI59: E-QWE09022-9/27
I60: =Tabulka1[[#This Row],[Zahájení opravy Datum/Čas]]-Tabulka1[[#This Row],[Vystavení a převzetí Datum/Čas]] -> 00:00:00 | J60: =Tabulka1[[#This Row],[Datum předání stroje]]-Tabulka1[[#This Row],[Zahájení opravy Datum/Čas]] -> 00:00:00 | K60: =Tabulka1[[#This Row],[Datum předání stroje]]-Tabulka1[[#This Row],[Vystavení a převzetí Datum/Čas]] -> 00:00:00 | AI60: E-THZ-VÍCE PRÁCE
I61: =Tabulka1[[#This Row],[Zahájení opravy Datum/Čas]]-Tabulka1[[#This Row],[Vystavení a převzetí Datum/Čas]] -> 00:00:00 | J61: =Tabulka1[[#This Row],[Datum předání stroje]]-Tabulka1[[#This Row],[Zahájení opravy Datum/Čas]] -> 00:00:00 | K61: =Tabulka1[[#This Row],[Datum předání stroje]]-Tabulka1[[#This Row],[Vystavení a převzetí Datum/Čas]] -> 00:00:00 | AI61: E-VÍCE PRÁCE NA KK
I62: =Tabulka1[[#This Row],[Zahájení opravy Datum/Čas]]-Tabulka1[[#This Row],[Vystavení a převzetí Datum/Čas]] -> 00:00:00 | J62: =Tabulka1[[#This Row],[Datum předání stroje]]-Tabulka1[[#This Row],[Zahájení opravy Datum/Čas]] -> 00:00:00 | K62: =Tabulka1[[#This Row],[Datum předání stroje]]-Tabulka1[[#This Row],[Vystavení a převzetí Datum/Čas]] -> 00:00:00 | AI62: Expander renault
I63: =Tabulka1[[#This Row],[Zahájení opravy Datum/Čas]]-Tabulka1[[#This Row],[Vystavení a převzetí Datum/Čas]] -> 00:00:00 | J63: =Tabulka1[[#This Row],[Datum předání stroje]]-Tabulka1[[#This Row],[Zahájení opravy Datum/Čas]] -> 00:00:00 | K63: =Tabulka1[[#This Row],[Datum předání stroje]]-Tabulka1[[#This Row],[Vystavení a převzetí Datum/Čas]] -> 00:00:00 | AI63: E-ZA-VÍCE PRÁCE
I64: =Tabulka1[[#This Row],[Zahájení opravy Datum/Čas]]-Tabulka1[[#This Row],[Vystavení a převzetí Datum/Čas]] -> 00:00:00 | J64: =Tabulka1[[#This Row],[Datum předání stroje]]-Tabulka1[[#This Row],[Zahájení opravy Datum/Čas]] -> 00:00:00 | K64: =Tabulka1[[#This Row],[Datum předání stroje]]-Tabulka1[[#This Row],[Vystavení a převzetí Datum/Čas]] -> 00:00:00 | AI64: Frézka
I65: =Tabulka1[[#This Row],[Zahájení opravy Datum/Čas]]-Tabulka1[[#This Row],[Vystavení a převzetí Datum/Čas]] -> 00:00:00 | J65: =Tabulka1[[#This Row],[Datum předání stroje]]-Tabulka1[[#This Row],[Zahájení opravy Datum/Čas]] -> 00:00:00 | K65: =Tabulka1[[#This Row],[Datum předání stroje]]-Tabulka1[[#This Row],[Vystavení a převzetí Datum/Čas]] -> 00:00:00 | AI65: Chiron
I66: =Tabulka1[[#This Row],[Zahájení opravy Datum/Čas]]-Tabulka1[[#This Row],[Vystavení a převzetí Datum/Čas]] -> 00:00:00 | J66: =Tabulka1[[#This Row],[Datum předání stroje]]-Tabulka1[[#This Row],[Zahájení opravy Datum/Čas]] -> 00:00:00 | K66: =Tabulka1[[#This Row],[Datum předání stroje]]-Tabulka1[[#This Row],[Vystavení a převzetí Datum/Čas]] -> 00:00:00 | AI66: Chladící věž
I67: =Tabulka1[[#This Row],[Zahájení opravy Datum/Čas]]-Tabulka1[[#This Row],[Vystavení a převzetí Datum/Čas]] -> 00:00:00 | J67: =Tabulka1[[#This Row],[Datum předání stroje]]-Tabulka1[[#This Row],[Zahájení opravy Datum/Čas]] -> 00:00:00 | K67: =Tabulka1[[#This Row],[Datum předání stroje]]-Tabulka1[[#This Row],[Vystavení a převzetí Datum/Čas]] -> 00:00:00 | AI67: Knoll 3-32
I68: =Tabulka1[[#This Row],[Zahájení opravy Datum/Čas]]-Tabulka1[[#This Row],[Vystavení a převzetí Datum/Čas]] -> 00:00:00 | J68: =Tabulka1[[#This Row],[Datum předání stroje]]-Tabulka1[[#This Row],[Zahájení opravy Datum/Čas]] -> 00:00:00 | K68: =Tabulka1[[#This Row],[Datum předání stroje]]-Tabulka1[[#This Row],[Vystavení a převzetí Datum/Čas]] -> 00:00:00 | O68: =IF($N68>=0.1,"Y","") ->  | P68: =IF($N68>=0.15,"Y","") ->  | Q68: =IF($N68>=0.2,"Y","") ->  | R68: =IF($N68>=0.25,"Y","") ->  | S68: =IF($N68>=0.3,"Y","") ->  | T68: =IF($N68>=0.35,"Y","") ->  | U68: =IF($N68>=0.4,"Y","") ->  | V68: =IF($N68>=0.45,"Y","") ->  | W68: =IF($N68>=0.5,"Y","") ->  | X68: =IF($N68>=0.55,"X","") ->  | Y68: =IF($N68>=0.6,"X","") ->  | Z68: =IF($N68>=0.65,"X","") ->  | AA68: =IF($N68>=0.7,"X","") ->  | AB68: =IF($N68>=0.75,"X","") ->  | AC68: =IF($N68>=0.8,"K","") ->  | AD68: =IF($N68>=0.85,"K","") ->  | AE68: =IF($N68>=0.9,"K","") ->  | AF68: =IF($N68>=0.95,"K","") ->  | AG68: =IF($N68>=1,"K","") ->  | AI68: Knoll 5-6
I69: =Tabulka1[[#This Row],[Zahájení opravy Datum/Čas]]-Tabulka1[[#This Row],[Vystavení a převzetí Datum/Čas]] -> 00:00:00 | J69: =Tabulka1[[#This Row],[Datum předání stroje]]-Tabulka1[[#This Row],[Zahájení opravy Datum/Čas]] -> 00:00:00 | K69: =Tabulka1[[#This Row],[Datum předání stroje]]-Tabulka1[[#This Row],[Vystavení a převzetí Datum/Čas]] -> 00:00:00 | AI69: Knoll 11-12
I70: =Tabulka1[[#This Row],[Zahájení opravy Datum/Čas]]-Tabulka1[[#This Row],[Vystavení a převzetí Datum/Čas]] -> 00:00:00 | J70: =Tabulka1[[#This Row],[Datum předání stroje]]-Tabulka1[[#This Row],[Zahájení opravy Datum/Čas]] -> 00:00:00 | K70: =Tabulka1[[#This Row],[Datum předání stroje]]-Tabulka1[[#This Row],[Vystavení a převzetí Datum/Čas]] -> 00:00:00 | AI70: Knoll 14-15
I71: =Tabulka1[[#This Row],[Zahájení opravy Datum/Čas]]-Tabulka1[[#This Row],[Vystavení a převzetí Datum/Čas]] -> 00:00:00 | J71: =Tabulka1[[#This Row],[Datum předání stroje]]-Tabulka1[[#This Row],[Zahájení opravy Datum/Čas]] -> 00:00:00 | K71: =Tabulka1[[#This Row],[Datum předání stroje]]-Tabulka1[[#This Row],[Vystavení a převzetí Datum/Čas]] -> 00:00:00 | AI71: Knoll 16-17
I72: =Tabulka1[[#This Row],[Zahájení opravy Datum/Čas]]-Tabulka1[[#This Row],[Vystavení a převzetí Datum/Čas]] -> 00:00:00 | J72: =Tabulka1[[#This Row],[Datum předání stroje]]-Tabulka1[[#This Row],[Zahájení opravy Datum/Čas]] -> 00:00:00 | K72: =Tabulka1[[#This Row],[Datum předání stroje]]-Tabulka1[[#This Row],[Vystavení a převzetí Datum/Čas]] -> 00:00:00 | AI72: Knoll 20-23
I73: =Tabulka1[[#This Row],[Zahájení opravy Datum/Čas]]-Tabulka1[[#This Row],[Vystavení a převzetí Datum/Čas]] -> 00:00:00 | J73: =Tabulka1[[#This Row],[Datum předání stroje]]-Tabulka1[[#This Row],[Zahájení opravy Datum/Čas]] -> 00:00:00 | K73: =Tabulka1[[#This Row],[Datum předání stroje]]-Tabulka1[[#This Row],[Vystavení a převzetí Datum/Čas]] -> 00:00:00 | AI73: Knoll 24-25
I74: =Tabulka1[[#This Row],[Zahájení opravy Datum/Čas]]-Tabulka1[[#This Row],[Vystavení a převzetí Datum/Čas]] -> 00:00:00 | J74: =Tabulka1[[#This Row],[Datum předání stroje]]-Tabulka1[[#This Row],[Zahájení opravy Datum/Čas]] -> 00:00:00 | K74: =Tabulka1[[#This Row],[Datum předání stroje]]-Tabulka1[[#This Row],[Vystavení a převzetí Datum/Čas]] -> 00:00:00 | AI74: Knoll 29-30
I75: =Tabulka1[[#This Row],[Zahájení opravy Datum/Čas]]-Tabulka1[[#This Row],[Vystavení a převzetí Datum/Čas]] -> 00:00:00 | J75: =Tabulka1[[#This Row],[Datum předání stroje]]-Tabulka1[[#This Row],[Zahájení opravy Datum/Čas]] -> 00:00:00 | K75: =Tabulka1[[#This Row],[Datum předání stroje]]-Tabulka1[[#This Row],[Vystavení a převzetí Datum/Čas]] -> 00:00:00 | AI75: Knoll 28-31
I76: =Tabulka1[[#This Row],[Zahájení opravy Datum/Čas]]-Tabulka1[[#This Row],[Vystavení a převzetí Datum/Čas]] -> 00:00:00 | J76: =Tabulka1[[#This Row],[Datum předání stroje]]-Tabulka1[[#This Row],[Zahájení opravy Datum/Čas]] -> 00:00:00 | K76: =Tabulka1[[#This Row],[Datum předání stroje]]-Tabulka1[[#This Row],[Vystavení a převzetí Datum/Čas]] -> 00:00:00 | AI76: Knoll 33-34
I77: =Tabulka1[[#This Row],[Zahájení opravy Datum/Čas]]-Tabulka1[[#This Row],[Vystavení a převzetí Datum/Čas]] -> 00:00:00 | J77: =Tabulka1[[#This Row],[Datum předání stroje]]-Tabulka1[[#This Row],[Zahájení opravy Datum/Čas]] -> 00:00:00 | K77: =Tabulka1[[#This Row],[Datum předání stroje]]-Tabulka1[[#This Row],[Vystavení a převzetí Datum/Čas]] -> 00:00:00 | AI77: Knoll 7-9-13
I78: =Tabulka1[[#This Row],[Zahájení opravy Datum/Čas]]-Tabulka1[[#This Row],[Vystavení a převzetí Datum/Čas]] -> 00:00:00 | J78: =Tabulka1[[#This Row],[Datum předání stroje]]-Tabulka1[[#This Row],[Zahájení opravy Datum/Čas]] -> 00:00:00 | K78: =Tabulka1[[#This Row],[Datum předání stroje]]-Tabulka1[[#This Row],[Vystavení a převzetí Datum/Čas]] -> 00:00:00 | AI78: Knoll 19
I79: =Tabulka1[[#This Row],[Zahájení opravy Datum/Čas]]-Tabulka1[[#This Row],[Vystavení a převzetí Datum/Čas]] -> 00:00:00 | J79: =Tabulka1[[#This Row],[Datum předání stroje]]-Tabulka1[[#This Row],[Zahájení opravy Datum/Čas]] -> 00:00:00 | K79: =Tabulka1[[#This Row],[Datum předání stroje]]-Tabulka1[[#This Row],[Vystavení a převzetí Datum/Čas]] -> 00:00:00 | AI79: Knoll RTM
I80: =Tabulka1[[#This Row],[Zahájení opravy Datum/Čas]]-Tabulka1[[#This Row],[Vystavení a převzetí Datum/Čas]] -> 00:00:00 | J80: =Tabulka1[[#This Row],[Datum předání stroje]]-Tabulka1[[#This Row],[Zahájení opravy Datum/Čas]] -> 00:00:00 | K80: =Tabulka1[[#This Row],[Datum předání stroje]]-Tabulka1[[#This Row],[Vystavení a převzetí Datum/Čas]] -> 00:00:00 | AI80: Knoll Verkettung
I81: =Tabulka1[[#This Row],[Zahájení opravy Datum/Čas]]-Tabulka1[[#This Row],[Vystavení a převzetí Datum/Čas]] -> 00:00:00 | J81: =Tabulka1[[#This Row],[Datum předání stroje]]-Tabulka1[[#This Row],[Zahájení opravy Datum/Čas]] -> 00:00:00 | K81: =Tabulka1[[#This Row],[Datum předání stroje]]-Tabulka1[[#This Row],[Vystavení a převzetí Datum/Čas]] -> 00:00:00 | AI81: Myčka
I82: =Tabulka1[[#This Row],[Zahájení opravy Datum/Čas]]-Tabulka1[[#This Row],[Vystavení a převzetí Datum/Čas]] -> 00:00:00 | J82: =Tabulka1[[#This Row],[Datum předání stroje]]-Tabulka1[[#This Row],[Zahájení opravy Datum/Čas]] -> 00:00:00 | K82: =Tabulka1[[#This Row],[Datum předání stroje]]-Tabulka1[[#This Row],[Vystavení a převzetí Datum/Čas]] -> 00:00:00 | AI82: Neutralizace
I83: =Tabulka1[[#This Row],[Zahájení opravy Datum/Čas]]-Tabulka1[[#This Row],[Vystavení a převzetí Datum/Čas]] -> 00:00:00 | J83: =Tabulka1[[#This Row],[Datum předání stroje]]-Tabulka1[[#This Row],[Zahájení opravy Datum/Čas]] -> 00:00:00 | K83: =Tabulka1[[#This Row],[Datum předání stroje]]-Tabulka1[[#This Row],[Vystavení a převzetí Datum/Čas]] -> 00:00:00 | AI83: Separátor
I84: =Tabulka1[[#This Row],[Zahájení opravy Datum/Čas]]-Tabulka1[[#This Row],[Vystavení a převzetí Datum/Čas]] -> 00:00:00 | J84: =Tabulka1[[#This Row],[Datum předání stroje]]-Tabulka1[[#This Row],[Zahájení opravy Datum/Čas]] -> 00:00:00 | K84: =Tabulka1[[#This Row],[Datum předání stroje]]-Tabulka1[[#This Row],[Vystavení a převzetí Datum/Čas]] -> 00:00:00 | AI84: TOX pressotechnik
I85: =Tabulka1[[#This Row],[Zahájení opravy Datum/Čas]]-Tabulka1[[#This Row],[Vystavení a převzetí Datum/Čas]] -> 00:00:00 | J85: =Tabulka1[[#This Row],[Datum předání stroje]]-Tabulka1[[#This Row],[Zahájení opravy Datum/Čas]] -> 00:00:00 | K85: =Tabulka1[[#This Row],[Datum předání stroje]]-Tabulka1[[#This Row],[Vystavení a převzetí Datum/Čas]] -> 00:00:00 | AI85: Annod-Sušička 1
I86: =Tabulka1[[#This Row],[Zahájení opravy Datum/Čas]]-Tabulka1[[#This Row],[Vystavení a převzetí Datum/Čas]] -> 00:00:00 | J86: =Tabulka1[[#This Row],[Datum předání stroje]]-Tabulka1[[#This Row],[Zahájení opravy Datum/Čas]] -> 00:00:00 | K86: =Tabulka1[[#This Row],[Datum předání stroje]]-Tabulka1[[#This Row],[Vystavení a převzetí Datum/Čas]] -> 00:00:00 | AI86: Annod-Sušička 2
I87: =Tabulka1[[#This Row],[Zahájení opravy Datum/Čas]]-Tabulka1[[#This Row],[Vystavení a převzetí Datum/Čas]] -> 00:00:00 | J87: =Tabulka1[[#This Row],[Datum předání stroje]]-Tabulka1[[#This Row],[Zahájení opravy Datum/Čas]] -> 00:00:00 | K87: =Tabulka1[[#This Row],[Datum předání stroje]]-Tabulka1[[#This Row],[Vystavení a převzetí Datum/Čas]] -> 00:00:00 | AI87: VTM 11
I88: =Tabulka1[[#This Row],[Zahájení opravy Datum/Čas]]-Tabulka1[[#This Row],[Vystavení a převzetí Datum/Čas]] -> 00:00:00 | J88: =Tabulka1[[#This Row],[Datum předání stroje]]-Tabulka1[[#This Row],[Zahájení opravy Datum/Čas]] -> 00:00:00 | K88: =Tabulka1[[#This Row],[Datum předání stroje]]-Tabulka1[[#This Row],[Vystavení a převzetí Datum/Čas]] -> 00:00:00 | AI88: VTM 12
I89: =Tabulka1[[#This Row],[Zahájení opravy Datum/Čas]]-Tabulka1[[#This Row],[Vystavení a převzetí Datum/Čas]] -> 00:00:00 | J89: =Tabulka1[[#This Row],[Datum předání stroje]]-Tabulka1[[#This Row],[Zahájení opravy Datum/Čas]] -> 00:00:00 | K89: =Tabulka1[[#This Row],[Datum předání stroje]]-Tabulka1[[#This Row],[Vystavení a převzetí Datum/Čas]] -> 00:00:00 | AI89: VTM 13
I90: =Tabulka1[[#This Row],[Zahájení opravy Datum/Čas]]-Tabulka1[[#This Row],[Vystavení a převzetí Datum/Čas]] -> 00:00:00 | J90: =Tabulka1[[#This Row],[Datum předání stroje]]-Tabulka1[[#This Row],[Zahájení opravy Datum/Čas]] -> 00:00:00 | K90: =Tabulka1[[#This Row],[Datum předání stroje]]-Tabulka1[[#This Row],[Vystavení a převzetí Datum/Čas]] -> 00:00:00 | AI90: VTM 14
I91: =Tabulka1[[#This Row],[Zahájení opravy Datum/Čas]]-Tabulka1[[#This Row],[Vystavení a převzetí Datum/Čas]] -> 00:00:00 | J91: =Tabulka1[[#This Row],[Datum předání stroje]]-Tabulka1[[#This Row],[Zahájení opravy Datum/Čas]] -> 00:00:00 | K91: =Tabulka1[[#This Row],[Datum předání stroje]]-Tabulka1[[#This Row],[Vystavení a převzetí Datum/Čas]] -> 00:00:00 | AI91: VTM 15
I92: =Tabulka1[[#This Row],[Zahájení opravy Datum/Čas]]-Tabulka1[[#This Row],[Vystavení a převzetí Datum/Čas]] -> 00:00:00 | J92: =Tabulka1[[#This Row],[Datum předání stroje]]-Tabulka1[[#This Row],[Zahájení opravy Datum/Čas]] -> 00:00:00 | K92: =Tabulka1[[#This Row],[Datum předání stroje]]-Tabulka1[[#This Row],[Vystavení a převzetí Datum/Čas]] -> 00:00:00 | AI92: VTM 16
I93: =Tabulka1[[#This Row],[Zahájení opravy Datum/Čas]]-Tabulka1[[#This Row],[Vystavení a převzetí Datum/Čas]] -> 00:00:00 | J93: =Tabulka1[[#This Row],[Datum předání stroje]]-Tabulka1[[#This Row],[Zahájení opravy Datum/Čas]] -> 00:00:00 | K93: =Tabulka1[[#This Row],[Datum předání stroje]]-Tabulka1[[#This Row],[Vystavení a převzetí Datum/Čas]] -> 00:00:00 | AI93: VTM 17
I94: =Tabulka1[[#This Row],[Zahájení opravy Datum/Čas]]-Tabulka1[[#This Row],[Vystavení a převzetí Datum/Čas]] -> 00:00:00 | J94: =Tabulka1[[#This Row],[Datum předání stroje]]-Tabulka1[[#This Row],[Zahájení opravy Datum/Čas]] -> 00:00:00 | K94: =Tabulka1[[#This Row],[Datum předání stroje]]-Tabulka1[[#This Row],[Vystavení a převzetí Datum/Čas]] -> 00:00:00 | AI94: VTM 19
I95: =Tabulka1[[#This Row],[Zahájení opravy Datum/Čas]]-Tabulka1[[#This Row],[Vystavení a převzetí Datum/Čas]] -> 00:00:00 | J95: =Tabulka1[[#This Row],[Datum předání stroje]]-Tabulka1[[#This Row],[Zahájení opravy Datum/Čas]] -> 00:00:00 | K95: =Tabulka1[[#This Row],[Datum předání stroje]]-Tabulka1[[#This Row],[Vystavení a převzetí Datum/Čas]] -> 00:00:00 | AI95: VTM 20
I96: =Tabulka1[[#This Row],[Zahájení opravy Datum/Čas]]-Tabulka1[[#This Row],[Vystavení a převzetí Datum/Čas]] -> 00:00:00 | J96: =Tabulka1[[#This Row],[Datum předání stroje]]-Tabulka1[[#This Row],[Zahájení opravy Datum/Čas]] -> 00:00:00 | K96: =Tabulka1[[#This Row],[Datum předání stroje]]-Tabulka1[[#This Row],[Vystavení a převzetí Datum/Čas]] -> 00:00:00 | AI96: VTM 23
I97: =Tabulka1[[#This Row],[Zahájení opravy Datum/Čas]]-Tabulka1[[#This Row],[Vystavení a převzetí Datum/Čas]] -> 00:00:00 | J97: =Tabulka1[[#This Row],[Datum předání stroje]]-Tabulka1[[#This Row],[Zahájení opravy Datum/Čas]] -> 00:00:00 | K97: =Tabulka1[[#This Row],[Datum předání stroje]]-Tabulka1[[#This Row],[Vystavení a převzetí Datum/Čas]] -> 00:00:00 | AI97: VTM 24
I98: =Tabulka1[[#This Row],[Zahájení opravy Datum/Čas]]-Tabulka1[[#This Row],[Vystavení a převzetí Datum/Čas]] -> 00:00:00 | J98: =Tabulka1[[#This Row],[Datum předání stroje]]-Tabulka1[[#This Row],[Zahájení opravy Datum/Čas]] -> 00:00:00 | K98: =Tabulka1[[#This Row],[Datum předání stroje]]-Tabulka1[[#This Row],[Vystavení a převzetí Datum/Čas]] -> 00:00:00 | AI98: VTM 25
I99: =Tabulka1[[#This Row],[Zahájení opravy Datum/Čas]]-Tabulka1[[#This Row],[Vystavení a převzetí Datum/Čas]] -> 00:00:00 | J99: =Tabulka1[[#This Row],[Datum předání stroje]]-Tabulka1[[#This Row],[Zahájení opravy Datum/Čas]] -> 00:00:00 | K99: =Tabulka1[[#This Row],[Datum předání stroje]]-Tabulka1[[#This Row],[Vystavení a převzetí Datum/Čas]] -> 00:00:00 | AI99: VTM 28
I100: =Tabulka1[[#This Row],[Zahájení opravy Datum/Čas]]-Tabulka1[[#This Row],[Vystavení a převzetí Datum/Čas]] -> 00:00:00 | J100: =Tabulka1[[#This Row],[Datum předání stroje]]-Tabulka1[[#This Row],[Zahájení opravy Datum/Čas]] -> 00:00:00 | K100: =Tabulka1[[#This Row],[Datum předání stroje]]-Tabulka1[[#This Row],[Vystavení a převzetí Datum/Čas]] -> 00:00:00 | AI100: VTM 29
I101: =Tabulka1[[#This Row],[Zahájení opravy Datum/Čas]]-Tabulka1[[#This Row],[Vystavení a převzetí Datum/Čas]] -> 00:00:00 | J101: =Tabulka1[[#This Row],[Datum předání stroje]]-Tabulka1[[#This Row],[Zahájení opravy Datum/Čas]] -> 00:00:00 | K101: =Tabulka1[[#This Row],[Datum předání stroje]]-Tabulka1[[#This Row],[Vystavení a převzetí Datum/Čas]] -> 00:00:00 | AI101: VTM 3
I102: =Tabulka1[[#This Row],[Zahájení opravy Datum/Čas]]-Tabulka1[[#This Row],[Vystavení a převzetí Datum/Čas]] -> 00:00:00 | J102: =Tabulka1[[#This Row],[Datum předání stroje]]-Tabulka1[[#This Row],[Zahájení opravy Datum/Čas]] -> 00:00:00 | K102: =Tabulka1[[#This Row],[Datum předání stroje]]-Tabulka1[[#This Row],[Vystavení a převzetí Datum/Čas]] -> 00:00:00 | AI102: VTM 30
I103: =Tabulka1[[#This Row],[Zahájení opravy Datum/Čas]]-Tabulka1[[#This Row],[Vystavení a převzetí Datum/Čas]] -> 00:00:00 | J103: =Tabulka1[[#This Row],[Datum předání stroje]]-Tabulka1[[#This Row],[Zahájení opravy Datum/Čas]] -> 00:00:00 | K103: =Tabulka1[[#This Row],[Datum předání stroje]]-Tabulka1[[#This Row],[Vystavení a převzetí Datum/Čas]] -> 00:00:00 | AI103: VTM 31
I104: =Tabulka1[[#This Row],[Zahájení opravy Datum/Čas]]-Tabulka1[[#This Row],[Vystavení a převzetí Datum/Čas]] -> 00:00:00 | J104: =Tabulka1[[#This Row],[Datum předání stroje]]-Tabulka1[[#This Row],[Zahájení opravy Datum/Čas]] -> 00:00:00 | K104: =Tabulka1[[#This Row],[Datum předání stroje]]-Tabulka1[[#This Row],[Vystavení a převzetí Datum/Čas]] -> 00:00:00 | AI104: VTM 32
I105: =Tabulka1[[#This Row],[Zahájení opravy Datum/Čas]]-Tabulka1[[#This Row],[Vystavení a převzetí Datum/Čas]] -> 00:00:00 | J105: =Tabulka1[[#This Row],[Datum předání stroje]]-Tabulka1[[#This Row],[Zahájení opravy Datum/Čas]] -> 00:00:00 | K105: =Tabulka1[[#This Row],[Datum předání stroje]]-Tabulka1[[#This Row],[Vystavení a převzetí Datum/Čas]] -> 00:00:00 | AI105: VTM 33
I106: =Tabulka1[[#This Row],[Zahájení opravy Datum/Čas]]-Tabulka1[[#This Row],[Vystavení a převzetí Datum/Čas]] -> 00:00:00 | J106: =Tabulka1[[#This Row],[Datum předání stroje]]-Tabulka1[[#This Row],[Zahájení opravy Datum/Čas]] -> 00:00:00 | K106: =Tabulka1[[#This Row],[Datum předání stroje]]-Tabulka1[[#This Row],[Vystavení a převzetí Datum/Čas]] -> 00:00:00 | AI106: VTM 34
I107: =Tabulka1[[#This Row],[Zahájení opravy Datum/Čas]]-Tabulka1[[#This Row],[Vystavení a převzetí Datum/Čas]] -> 00:00:00 | J107: =Tabulka1[[#This Row],[Datum předání stroje]]-Tabulka1[[#This Row],[Zahájení opravy Datum/Čas]] -> 00:00:00 | K107: =Tabulka1[[#This Row],[Datum předání stroje]]-Tabulka1[[#This Row],[Vystavení a převzetí Datum/Čas]] -> 00:00:00 | AI107: VTM 5
I108: =Tabulka1[[#This Row],[Zahájení opravy Datum/Čas]]-Tabulka1[[#This Row],[Vystavení a převzetí Datum/Čas]] -> 00:00:00 | J108: =Tabulka1[[#This Row],[Datum předání stroje]]-Tabulka1[[#This Row],[Zahájení opravy Datum/Čas]] -> 00:00:00 | K108: =Tabulka1[[#This Row],[Datum předání stroje]]-Tabulka1[[#This Row],[Vystavení a převzetí Datum/Čas]] -> 00:00:00 | AI108: VTM 6
I109: =Tabulka1[[#This Row],[Zahájení opravy Datum/Čas]]-Tabulka1[[#This Row],[Vystavení a převzetí Datum/Čas]] -> 00:00:00 | J109: =Tabulka1[[#This Row],[Datum předání stroje]]-Tabulka1[[#This Row],[Zahájení opravy Datum/Čas]] -> 00:00:00 | K109: =Tabulka1[[#This Row],[Datum předání stroje]]-Tabulka1[[#This Row],[Vystavení a převzetí Datum/Čas]] -> 00:00:00 | AI109: VTM 7
I110: =Tabulka1[[#This Row],[Zahájení opravy Datum/Čas]]-Tabulka1[[#This Row],[Vystavení a převzetí Datum/Čas]] -> 00:00:00 | J110: =Tabulka1[[#This Row],[Datum předání stroje]]-Tabulka1[[#This Row],[Zahájení opravy Datum/Čas]] -> 00:00:00 | K110: =Tabulka1[[#This Row],[Datum předání stroje]]-Tabulka1[[#This Row],[Vystavení a převzetí Datum/Čas]] -> 00:00:00 | AI110: VTM 9
I111: =Tabulka1[[#This Row],[Zahájení opravy Datum/Čas]]-Tabulka1[[#This Row],[Vystavení a převzetí Datum/Čas]] -> 00:00:00 | J111: =Tabulka1[[#This Row],[Datum předání stroje]]-Tabulka1[[#This Row],[Zahájení opravy Datum/Čas]] -> 00:00:00 | K111: =Tabulka1[[#This Row],[Datum předání stroje]]-Tabulka1[[#This Row],[Vystavení a převzetí Datum/Čas]] -> 00:00:00 | AI111: RTM
I112: =Tabulka1[[#This Row],[Zahájení opravy Datum/Čas]]-Tabulka1[[#This Row],[Vystavení a převzetí Datum/Čas]] -> 00:00:00 | J112: =Tabulka1[[#This Row],[Datum předání stroje]]-Tabulka1[[#This Row],[Zahájení opravy Datum/Čas]] -> 00:00:00 | K112: =Tabulka1[[#This Row],[Datum předání stroje]]-Tabulka1[[#This Row],[Vystavení a převzetí Datum/Čas]] -> 00:00:00 | AI112: Piller 4
I113: =Tabulka1[[#This Row],[Zahájení opravy Datum/Čas]]-Tabulka1[[#This Row],[Vystavení a převzetí Datum/Čas]] -> 00:00:00 | J113: =Tabulka1[[#This Row],[Datum předání stroje]]-Tabulka1[[#This Row],[Zahájení opravy Datum/Čas]] -> 00:00:00 | K113: =Tabulka1[[#This Row],[Datum předání stroje]]-Tabulka1[[#This Row],[Vystavení a převzetí Datum/Čas]] -> 00:00:00 | AI113: Piller 5
I114: =Tabulka1[[#This Row],[Zahájení opravy Datum/Čas]]-Tabulka1[[#This Row],[Vystavení a převzetí Datum/Čas]] -> 00:00:00 | J114: =Tabulka1[[#This Row],[Datum předání stroje]]-Tabulka1[[#This Row],[Zahájení opravy Datum/Čas]] -> 00:00:00 | K114: =Tabulka1[[#This Row],[Datum předání stroje]]-Tabulka1[[#This Row],[Vystavení a převzetí Datum/Čas]] -> 00:00:00 | AI114: Piller 6
I115: =Tabulka1[[#This Row],[Zahájení opravy Datum/Čas]]-Tabulka1[[#This Row],[Vystavení a převzetí Datum/Čas]] -> 00:00:00 | J115: =Tabulka1[[#This Row],[Datum předání stroje]]-Tabulka1[[#This Row],[Zahájení opravy Datum/Čas]] -> 00:00:00 | K115: =Tabulka1[[#This Row],[Datum předání stroje]]-Tabulka1[[#This Row],[Vystavení a převzetí Datum/Čas]] -> 00:00:00 | AI115: Piller 7
I116: =Tabulka1[[#This Row],[Zahájení opravy Datum/Čas]]-Tabulka1[[#This Row],[Vystavení a převzetí Datum/Čas]] -> 00:00:00 | J116: =Tabulka1[[#This Row],[Datum předání stroje]]-Tabulka1[[#This Row],[Zahájení opravy Datum/Čas]] -> 00:00:00 | K116: =Tabulka1[[#This Row],[Datum předání stroje]]-Tabulka1[[#This Row],[Vystavení a převzetí Datum/Čas]] -> 00:00:00 | AI116: Piller THZ
I117: =Tabulka1[[#This Row],[Zahájení opravy Datum/Čas]]-Tabulka1[[#This Row],[Vystavení a převzetí Datum/Čas]] -> 00:00:00 | J117: =Tabulka1[[#This Row],[Datum předání stroje]]-Tabulka1[[#This Row],[Zahájení opravy Datum/Čas]] -> 00:00:00 | K117: =Tabulka1[[#This Row],[Datum předání stroje]]-Tabulka1[[#This Row],[Vystavení a převzetí Datum/Čas]] -> 00:00:00 | AI117: Vysavač
I118: =Tabulka1[[#This Row],[Zahájení opravy Datum/Čas]]-Tabulka1[[#This Row],[Vystavení a převzetí Datum/Čas]] -> 00:00:00 | J118: =Tabulka1[[#This Row],[Datum předání stroje]]-Tabulka1[[#This Row],[Zahájení opravy Datum/Čas]] -> 00:00:00 | K118: =Tabulka1[[#This Row],[Datum předání stroje]]-Tabulka1[[#This Row],[Vystavení a převzetí Datum/Čas]] -> 00:00:00
I119: =Tabulka1[[#This Row],[Zahájení opravy Datum/Čas]]-Tabulka1[[#This Row],[Vystavení a převzetí Datum/Čas]] -> 00:00:00 | J119: =Tabulka1[[#This Row],[Datum předání stroje]]-Tabulka1[[#This Row],[Zahájení opravy Datum/Čas]] -> 00:00:00 | K119: =Tabulka1[[#This Row],[Datum předání stroje]]-Tabulka1[[#This Row],[Vystavení a převzetí Datum/Čas]] -> 00:00:00
I120: =Tabulka1[[#This Row],[Zahájení opravy Datum/Čas]]-Tabulka1[[#This Row],[Vystavení a převzetí Datum/Čas]] -> 00:00:00 | J120: =Tabulka1[[#This Row],[Datum předání stroje]]-Tabulka1[[#This Row],[Zahájení opravy Datum/Čas]] -> 00:00:00 | K120: =Tabulka1[[#This Row],[Datum předání stroje]]-Tabulka1[[#This Row],[Vystavení a převzetí Datum/Čas]] -> 00:00:00
I121: =Tabulka1[[#This Row],[Zahájení opravy Datum/Čas]]-Tabulka1[[#This Row],[Vystavení a převzetí Datum/Čas]] -> 00:00:00 | J121: =Tabulka1[[#This Row],[Datum předání stroje]]-Tabulka1[[#This Row],[Zahájení opravy Datum/Čas]] -> 00:00:00 | K121: =Tabulka1[[#This Row],[Datum předání stroje]]-Tabulka1[[#This Row],[Vystavení a převzetí Datum/Čas]] -> 00:00:00
I122: =Tabulka1[[#This Row],[Zahájení opravy Datum/Čas]]-Tabulka1[[#This Row],[Vystavení a převzetí Datum/Čas]] -> 00:00:00 | J122: =Tabulka1[[#This Row],[Datum předání stroje]]-Tabulka1[[#This Row],[Zahájení opravy Datum/Čas]] -> 00:00:00 | K122: =Tabulka1[[#This Row],[Datum předání stroje]]-Tabulka1[[#This Row],[Vystavení a převzetí Datum/Čas]] -> 00:00:00
I123: =Tabulka1[[#This Row],[Zahájení opravy Datum/Čas]]-Tabulka1[[#This Row],[Vystavení a převzetí Datum/Čas]] -> 00:00:00 | J123: =Tabulka1[[#This Row],[Datum předání stroje]]-Tabulka1[[#This Row],[Zahájení opravy Datum/Čas]] -> 00:00:00 | K123: =Tabulka1[[#This Row],[Datum předání stroje]]-Tabulka1[[#This Row],[Vystavení a převzetí Datum/Čas]] -> 00:00:00
I124: =Tabulka1[[#This Row],[Zahájení opravy Datum/Čas]]-Tabulka1[[#This Row],[Vystavení a převzetí Datum/Čas]] -> 00:00:00 | J124: =Tabulka1[[#This Row],[Datum předání stroje]]-Tabulka1[[#This Row],[Zahájení opravy Datum/Čas]] -> 00:00:00 | K124: =Tabulka1[[#This Row],[Datum předání stroje]]-Tabulka1[[#This Row],[Vystavení a převzetí Datum/Čas]] -> 00:00:00
I125: =Tabulka1[[#This Row],[Zahájení opravy Datum/Čas]]-Tabulka1[[#This Row],[Vystavení a převzetí Datum/Čas]] -> 00:00:00 | J125: =Tabulka1[[#This Row],[Datum předání stroje]]-Tabulka1[[#This Row],[Zahájení opravy Datum/Čas]] -> 00:00:00 | K125: =Tabulka1[[#This Row],[Datum předání stroje]]-Tabulka1[[#This Row],[Vystavení a převzetí Datum/Čas]] -> 00:00:00 | AI125: Lejček 330479
I126: =Tabulka1[[#This Row],[Zahájení opravy Datum/Čas]]-Tabulka1[[#This Row],[Vystavení a převzetí Datum/Čas]] -> 00:00:00 | J126: =Tabulka1[[#This Row],[Datum předání stroje]]-Tabulka1[[#This Row],[Zahájení opravy Datum/Čas]] -> 00:00:00 | K126: =Tabulka1[[#This Row],[Datum předání stroje]]-Tabulka1[[#This Row],[Vystavení a převzetí Datum/Čas]] -> 00:00:00 | AI126: Linc 330576
I127: =Tabulka1[[#This Row],[Zahájení opravy Datum/Čas]]-Tabulka1[[#This Row],[Vystavení a převzetí Datum/Čas]] -> 00:00:00 | J127: =Tabulka1[[#This Row],[Datum předání stroje]]-Tabulka1[[#This Row],[Zahájení opravy Datum/Čas]] -> 00:00:00 | K127: =Tabulka1[[#This Row],[Datum předání stroje]]-Tabulka1[[#This Row],[Vystavení a převzetí Datum/Čas]] -> 00:00:00 | AI127: Nedoma 330841
I128: =Tabulka1[[#This Row],[Zahájení opravy Datum/Čas]]-Tabulka1[[#This Row],[Vystavení a převzetí Datum/Čas]] -> 00:00:00 | J128: =Tabulka1[[#This Row],[Datum předání stroje]]-Tabulka1[[#This Row],[Zahájení opravy Datum/Čas]] -> 00:00:00 | K128: =Tabulka1[[#This Row],[Datum předání stroje]]-Tabulka1[[#This Row],[Vystavení a převzetí Datum/Čas]] -> 00:00:00 | AI128: Pavelka 331117
I129: =Tabulka1[[#This Row],[Zahájení opravy Datum/Čas]]-Tabulka1[[#This Row],[Vystavení a převzetí Datum/Čas]] -> 00:00:00 | J129: =Tabulka1[[#This Row],[Datum předání stroje]]-Tabulka1[[#This Row],[Zahájení opravy Datum/Čas]] -> 00:00:00 | K129: =Tabulka1[[#This Row],[Datum předání stroje]]-Tabulka1[[#This Row],[Vystavení a převzetí Datum/Čas]] -> 00:00:00 | AI129: Pešek 330196
I130: =Tabulka1[[#This Row],[Zahájení opravy Datum/Čas]]-Tabulka1[[#This Row],[Vystavení a převzetí Datum/Čas]] -> 00:00:00 | J130: =Tabulka1[[#This Row],[Datum předání stroje]]-Tabulka1[[#This Row],[Zahájení opravy Datum/Čas]] -> 00:00:00 | K130: =Tabulka1[[#This Row],[Datum předání stroje]]-Tabulka1[[#This Row],[Vystavení a převzetí Datum/Čas]] -> 00:00:00 | AI130: Polan 330303
I131: =Tabulka1[[#This Row],[Zahájení opravy Datum/Čas]]-Tabulka1[[#This Row],[Vystavení a převzetí Datum/Čas]] -> 00:00:00 | J131: =Tabulka1[[#This Row],[Datum předání stroje]]-Tabulka1[[#This Row],[Zahájení opravy Datum/Čas]] -> 00:00:00 | K131: =Tabulka1[[#This Row],[Datum předání stroje]]-Tabulka1[[#This Row],[Vystavení a převzetí Datum/Čas]] -> 00:00:00 | AI131: Pour 330389
I132: =Tabulka1[[#This Row],[Zahájení opravy Datum/Čas]]-Tabulka1[[#This Row],[Vystavení a převzetí Datum/Čas]] -> 00:00:00 | J132: =Tabulka1[[#This Row],[Datum předání stroje]]-Tabulka1[[#This Row],[Zahájení opravy Datum/Čas]] -> 00:00:00 | K132: =Tabulka1[[#This Row],[Datum předání stroje]]-Tabulka1[[#This Row],[Vystavení a převzetí Datum/Čas]] -> 00:00:00 | O132: =IF($N132>=0.1,"Y","") ->  | P132: =IF($N132>=0.15,"Y","") ->  | Q132: =IF($N132>=0.2,"Y","") ->  | R132: =IF($N132>=0.25,"Y","") ->  | S132: =IF($N132>=0.3,"Y","") ->  | T132: =IF($N132>=0.35,"Y","") ->  | U132: =IF($N132>=0.4,"Y","") ->  | V132: =IF($N132>=0.45,"Y","") ->  | W132: =IF($N132>=0.5,"Y","") ->  | X132: =IF($N132>=0.55,"X","") ->  | Y132: =IF($N132>=0.6,"X","") ->  | Z132: =IF($N132>=0.65,"X","") ->  | AA132: =IF($N132>=0.7,"X","") ->  | AB132: =IF($N132>=0.75,"X","") ->  | AC132: =IF($N132>=0.8,"K","") ->  | AD132: =IF($N132>=0.85,"K","") ->  | AE132: =IF($N132>=0.9,"K","") ->  | AF132: =IF($N132>=0.95,"K","") ->  | AG132: =IF($N132>=1,"K","") ->  | AI132: Salát 331355
I133: =Tabulka1[[#This Row],[Zahájení opravy Datum/Čas]]-Tabulka1[[#This Row],[Vystavení a převzetí Datum/Čas]] -> 00:00:00 | J133: =Tabulka1[[#This Row],[Datum předání stroje]]-Tabulka1[[#This Row],[Zahájení opravy Datum/Čas]] -> 00:00:00 | K133: =Tabulka1[[#This Row],[Datum předání stroje]]-Tabulka1[[#This Row],[Vystavení a převzetí Datum/Čas]] -> 00:00:00 | AI133: Sklenář 330304
I134: =Tabulka1[[#This Row],[Zahájení opravy Datum/Čas]]-Tabulka1[[#This Row],[Vystavení a převzetí Datum/Čas]] -> 00:00:00 | J134: =Tabulka1[[#This Row],[Datum předání stroje]]-Tabulka1[[#This Row],[Zahájení opravy Datum/Čas]] -> 00:00:00 | K134: =Tabulka1[[#This Row],[Datum předání stroje]]-Tabulka1[[#This Row],[Vystavení a převzetí Datum/Čas]] -> 00:00:00 | AI134: Staněk 330605
I135: =Tabulka1[[#This Row],[Zahájení opravy Datum/Čas]]-Tabulka1[[#This Row],[Vystavení a převzetí Datum/Čas]] -> 00:00:00 | J135: =Tabulka1[[#This Row],[Datum předání stroje]]-Tabulka1[[#This Row],[Zahájení opravy Datum/Čas]] -> 00:00:00 | K135: =Tabulka1[[#This Row],[Datum předání stroje]]-Tabulka1[[#This Row],[Vystavení a převzetí Datum/Čas]] -> 00:00:00 | AI135: Zápotocký 330936
I136: =Tabulka1[[#This Row],[Zahájení opravy Datum/Čas]]-Tabulka1[[#This Row],[Vystavení a převzetí Datum/Čas]] -> 00:00:00 | J136: =Tabulka1[[#This Row],[Datum předání stroje]]-Tabulka1[[#This Row],[Zahájení opravy Datum/Čas]] -> 00:00:00 | K136: =Tabulka1[[#This Row],[Datum předání stroje]]-Tabulka1[[#This Row],[Vystavení a převzetí Datum/Čas]] -> 00:00:00 | AI136: Ex.firma
I137: =Tabulka1[[#This Row],[Zahájení opravy Datum/Čas]]-Tabulka1[[#This Row],[Vystavení a převzetí Datum/Čas]] -> 00:00:00 | J137: =Tabulka1[[#This Row],[Datum předání stroje]]-Tabulka1[[#This Row],[Zahájení opravy Datum/Čas]] -> 00:00:00 | K137: =Tabulka1[[#This Row],[Datum předání stroje]]-Tabulka1[[#This Row],[Vystavení a převzetí Datum/Čas]] -> 00:00:00
I138: =Tabulka1[[#This Row],[Zahájení opravy Datum/Čas]]-Tabulka1[[#This Row],[Vystavení a převzetí Datum/Čas]] -> 00:00:00 | J138: =Tabulka1[[#This Row],[Datum předání stroje]]-Tabulka1[[#This Row],[Zahájení opravy Datum/Čas]] -> 00:00:00 | K138: =Tabulka1[[#This Row],[Datum předání stroje]]-Tabulka1[[#This Row],[Vystavení a převzetí Datum/Čas]] -> 00:00:00
I139: =Tabulka1[[#This Row],[Zahájení opravy Datum/Čas]]-Tabulka1[[#This Row],[Vystavení a převzetí Datum/Čas]] -> 00:00:00 | J139: =Tabulka1[[#This Row],[Datum předání stroje]]-Tabulka1[[#This Row],[Zahájení opravy Datum/Čas]] -> 00:00:00 | K139: =Tabulka1[[#This Row],[Datum předání stroje]]-Tabulka1[[#This Row],[Vystavení a převzetí Datum/Čas]] -> 00:00:00
I140: =Tabulka1[[#This Row],[Zahájení opravy Datum/Čas]]-Tabulka1[[#This Row],[Vystavení a převzetí Datum/Čas]] -> 00:00:00 | J140: =Tabulka1[[#This Row],[Datum předání stroje]]-Tabulka1[[#This Row],[Zahájení opravy Datum/Čas]] -> 00:00:00 | K140: =Tabulka1[[#This Row],[Datum předání stroje]]-Tabulka1[[#This Row],[Vystavení a převzetí Datum/Čas]] -> 00:00:00
I141: =Tabulka1[[#This Row],[Zahájení opravy Datum/Čas]]-Tabulka1[[#This Row],[Vystavení a převzetí Datum/Čas]] -> 00:00:00 | J141: =Tabulka1[[#This Row],[Datum předání stroje]]-Tabulka1[[#This Row],[Zahájení opravy Datum/Čas]] -> 00:00:00 | K141: =Tabulka1[[#This Row],[Datum předání stroje]]-Tabulka1[[#This Row],[Vystavení a převzetí Datum/Čas]] -> 00:00:00
I142: =Tabulka1[[#This Row],[Zahájení opravy Datum/Čas]]-Tabulka1[[#This Row],[Vystavení a převzetí Datum/Čas]] -> 00:00:00 | J142: =Tabulka1[[#This Row],[Datum předání stroje]]-Tabulka1[[#This Row],[Zahájení opravy Datum/Čas]] -> 00:00:00 | K142: =Tabulka1[[#This Row],[Datum předání stroje]]-Tabulka1[[#This Row],[Vystavení a převzetí Datum/Čas]] -> 00:00:00
I143: =Tabulka1[[#This Row],[Zahájení opravy Datum/Čas]]-Tabulka1[[#This Row],[Vystavení a převzetí Datum/Čas]] -> 00:00:00 | J143: =Tabulka1[[#This Row],[Datum předání stroje]]-Tabulka1[[#This Row],[Zahájení opravy Datum/Čas]] -> 00:00:00 | K143: =Tabulka1[[#This Row],[Datum předání stroje]]-Tabulka1[[#This Row],[Vystavení a převzetí Datum/Čas]] -> 00:00:00
I144: =Tabulka1[[#This Row],[Zahájení opravy Datum/Čas]]-Tabulka1[[#This Row],[Vystavení a převzetí Datum/Čas]] -> 00:00:00 | J144: =Tabulka1[[#This Row],[Datum předání stroje]]-Tabulka1[[#This Row],[Zahájení opravy Datum/Čas]] -> 00:00:00 | K144: =Tabulka1[[#This Row],[Datum předání stroje]]-Tabulka1[[#This Row],[Vystavení a převzetí Datum/Čas]] -> 00:00:00
I145: =Tabulka1[[#This Row],[Zahájení opravy Datum/Čas]]-Tabulka1[[#This Row],[Vystavení a převzetí Datum/Čas]] -> 00:00:00 | J145: =Tabulka1[[#This Row],[Datum předání stroje]]-Tabulka1[[#This Row],[Zahájení opravy Datum/Čas]] -> 00:00:00 | K145: =Tabulka1[[#This Row],[Datum předání stroje]]-Tabulka1[[#This Row],[Vystavení a převzetí Datum/Čas]] -> 00:00:00
I146: =Tabulka1[[#This Row],[Zahájení opravy Datum/Čas]]-Tabulka1[[#This Row],[Vystavení a převzetí Datum/Čas]] -> 00:00:00 | J146: =Tabulka1[[#This Row],[Datum předání stroje]]-Tabulka1[[#This Row],[Zahájení opravy Datum/Čas]] -> 00:00:00 | K146: =Tabulka1[[#This Row],[Datum předání stroje]]-Tabulka1[[#This Row],[Vystavení a převzetí Datum/Čas]] -> 00:00:00
I147: =Tabulka1[[#This Row],[Zahájení opravy Datum/Čas]]-Tabulka1[[#This Row],[Vystavení a převzetí Datum/Čas]] -> 00:00:00 | J147: =Tabulka1[[#This Row],[Datum předání stroje]]-Tabulka1[[#This Row],[Zahájení opravy Datum/Čas]] -> 00:00:00 | K147: =Tabulka1[[#This Row],[Datum předání stroje]]-Tabulka1[[#This Row],[Vystavení a převzetí Datum/Čas]] -> 00:00:00
I148: =Tabulka1[[#This Row],[Zahájení opravy Datum/Čas]]-Tabulka1[[#This Row],[Vystavení a převzetí Datum/Čas]] -> 00:00:00 | J148: =Tabulka1[[#This Row],[Datum předání stroje]]-Tabulka1[[#This Row],[Zahájení opravy Datum/Čas]] -> 00:00:00 | K148: =Tabulka1[[#This Row],[Datum předání stroje]]-Tabulka1[[#This Row],[Vystavení a převzetí Datum/Čas]] -> 00:00:00
I149: =Tabulka1[[#This Row],[Zahájení opravy Datum/Čas]]-Tabulka1[[#This Row],[Vystavení a převzetí Datum/Čas]] -> 00:00:00 | J149: =Tabulka1[[#This Row],[Datum předání stroje]]-Tabulka1[[#This Row],[Zahájení opravy Datum/Čas]] -> 00:00:00 | K149: =Tabulka1[[#This Row],[Datum předání stroje]]-Tabulka1[[#This Row],[Vystavení a převzetí Datum/Čas]] -> 00:00:00
I150: =Tabulka1[[#This Row],[Zahájení opravy Datum/Čas]]-Tabulka1[[#This Row],[Vystavení a převzetí Datum/Čas]] -> 00:00:00 | J150: =Tabulka1[[#This Row],[Datum předání stroje]]-Tabulka1[[#This Row],[Zahájení opravy Datum/Čas]] -> 00:00:00 | K150: =Tabulka1[[#This Row],[Datum předání stroje]]-Tabulka1[[#This Row],[Vystavení a převzetí Datum/Čas]] -> 00:00:00
I151: =Tabulka1[[#This Row],[Zahájení opravy Datum/Čas]]-Tabulka1[[#This Row],[Vystavení a převzetí Datum/Čas]] -> 00:00:00 | J151: =Tabulka1[[#This Row],[Datum předání stroje]]-Tabulka1[[#This Row],[Zahájení opravy Datum/Čas]] -> 00:00:00 | K151: =Tabulka1[[#This Row],[Datum předání stroje]]-Tabulka1[[#This Row],[Vystavení a převzetí Datum/Čas]] -> 00:00:00
I152: =Tabulka1[[#This Row],[Zahájení opravy Datum/Čas]]-Tabulka1[[#This Row],[Vystavení a převzetí Datum/Čas]] -> 00:00:00 | J152: =Tabulka1[[#This Row],[Datum předání stroje]]-Tabulka1[[#This Row],[Zahájení opravy Datum/Čas]] -> 00:00:00 | K152: =Tabulka1[[#This Row],[Datum předání stroje]]-Tabulka1[[#This Row],[Vystavení a převzetí Datum/Čas]] -> 00:00:00
I153: =Tabulka1[[#This Row],[Zahájení opravy Datum/Čas]]-Tabulka1[[#This Row],[Vystavení a převzetí Datum/Čas]] -> 00:00:00 | J153: =Tabulka1[[#This Row],[Datum předání stroje]]-Tabulka1[[#This Row],[Zahájení opravy Datum/Čas]] -> 00:00:00 | K153: =Tabulka1[[#This Row],[Datum předání stroje]]-Tabulka1[[#This Row],[Vystavení a převzetí Datum/Čas]] -> 00:00:00
I154: =Tabulka1[[#This Row],[Zahájení opravy Datum/Čas]]-Tabulka1[[#This Row],[Vystavení a převzetí Datum/Čas]] -> 00:00:00 | J154: =Tabulka1[[#This Row],[Datum předání stroje]]-Tabulka1[[#This Row],[Zahájení opravy Datum/Čas]] -> 00:00:00 | K154: =Tabulka1[[#This Row],[Datum předání stroje]]-Tabulka1[[#This Row],[Vystavení a převzetí Datum/Čas]] -> 00:00:00
I155: =Tabulka1[[#This Row],[Zahájení opravy Datum/Čas]]-Tabulka1[[#This Row],[Vystavení a převzetí Datum/Čas]] -> 00:00:00 | J155: =Tabulka1[[#This Row],[Datum předání stroje]]-Tabulka1[[#This Row],[Zahájení opravy Datum/Čas]] -> 00:00:00 | K155: =Tabulka1[[#This Row],[Datum předání stroje]]-Tabulka1[[#This Row],[Vystavení a převzetí Datum/Čas]] -> 00:00:00
I156: =Tabulka1[[#This Row],[Zahájení opravy Datum/Čas]]-Tabulka1[[#This Row],[Vystavení a převzetí Datum/Čas]] -> 00:00:00 | J156: =Tabulka1[[#This Row],[Datum předání stroje]]-Tabulka1[[#This Row],[Zahájení opravy Datum/Čas]] -> 00:00:00 | K156: =Tabulka1[[#This Row],[Datum předání stroje]]-Tabulka1[[#This Row],[Vystavení a převzetí Datum/Čas]] -> 00:00:00
I157: =Tabulka1[[#This Row],[Zahájení opravy Datum/Čas]]-Tabulka1[[#This Row],[Vystavení a převzetí Datum/Čas]] -> 00:00:00 | J157: =Tabulka1[[#This Row],[Datum předání stroje]]-Tabulka1[[#This Row],[Zahájení opravy Datum/Čas]] -> 00:00:00 | K157: =Tabulka1[[#This Row],[Datum předání stroje]]-Tabulka1[[#This Row],[Vystavení a převzetí Datum/Čas]] -> 00:00:00
I158: =Tabulka1[[#This Row],[Zahájení opravy Datum/Čas]]-Tabulka1[[#This Row],[Vystavení a převzetí Datum/Čas]] -> 00:00:00 | J158: =Tabulka1[[#This Row],[Datum předání stroje]]-Tabulka1[[#This Row],[Zahájení opravy Datum/Čas]] -> 00:00:00 | K158: =Tabulka1[[#This Row],[Datum předání stroje]]-Tabulka1[[#This Row],[Vystavení a převzetí Datum/Čas]] -> 00:00:00
I159: =Tabulka1[[#This Row],[Zahájení opravy Datum/Čas]]-Tabulka1[[#This Row],[Vystavení a převzetí Datum/Čas]] -> 00:00:00 | J159: =Tabulka1[[#This Row],[Datum předání stroje]]-Tabulka1[[#This Row],[Zahájení opravy Datum/Čas]] -> 00:00:00 | K159: =Tabulka1[[#This Row],[Datum předání stroje]]-Tabulka1[[#This Row],[Vystavení a převzetí Datum/Čas]] -> 00:00:00
I160: =Tabulka1[[#This Row],[Zahájení opravy Datum/Čas]]-Tabulka1[[#This Row],[Vystavení a převzetí Datum/Čas]] -> 00:00:00 | J160: =Tabulka1[[#This Row],[Datum předání stroje]]-Tabulka1[[#This Row],[Zahájení opravy Datum/Čas]] -> 00:00:00 | K160: =Tabulka1[[#This Row],[Datum předání stroje]]-Tabulka1[[#This Row],[Vystavení a převzetí Datum/Čas]] -> 00:00:00
I161: =Tabulka1[[#This Row],[Zahájení opravy Datum/Čas]]-Tabulka1[[#This Row],[Vystavení a převzetí Datum/Čas]] -> 00:00:00 | J161: =Tabulka1[[#This Row],[Datum předání stroje]]-Tabulka1[[#This Row],[Zahájení opravy Datum/Čas]] -> 00:00:00 | K161: =Tabulka1[[#This Row],[Datum předání stroje]]-Tabulka1[[#This Row],[Vystavení a převzetí Datum/Čas]] -> 00:00:00
I162: =Tabulka1[[#This Row],[Zahájení opravy Datum/Čas]]-Tabulka1[[#This Row],[Vystavení a převzetí Datum/Čas]] -> 00:00:00 | J162: =Tabulka1[[#This Row],[Datum předání stroje]]-Tabulka1[[#This Row],[Zahájení opravy Datum/Čas]] -> 00:00:00 | K162: =Tabulka1[[#This Row],[Datum předání stroje]]-Tabulka1[[#This Row],[Vystavení a převzetí Datum/Čas]] -> 00:00:00
I163: =Tabulka1[[#This Row],[Zahájení opravy Datum/Čas]]-Tabulka1[[#This Row],[Vystavení a převzetí Datum/Čas]] -> 00:00:00 | J163: =Tabulka1[[#This Row],[Datum předání stroje]]-Tabulka1[[#This Row],[Zahájení opravy Datum/Čas]] -> 00:00:00 | K163: =Tabulka1[[#This Row],[Datum předání stroje]]-Tabulka1[[#This Row],[Vystavení a převzetí Datum/Čas]] -> 00:00:00
I164: =Tabulka1[[#This Row],[Zahájení opravy Datum/Čas]]-Tabulka1[[#This Row],[Vystavení a převzetí Datum/Čas]] -> 00:00:00 | J164: =Tabulka1[[#This Row],[Datum předání stroje]]-Tabulka1[[#This Row],[Zahájení opravy Datum/Čas]] -> 00:00:00 | K164: =Tabulka1[[#This Row],[Datum předání stroje]]-Tabulka1[[#This Row],[Vystavení a převzetí Datum/Čas]] -> 00:00:00
I165: =Tabulka1[[#This Row],[Zahájení opravy Datum/Čas]]-Tabulka1[[#This Row],[Vystavení a převzetí Datum/Čas]] -> 00:00:00 | J165: =Tabulka1[[#This Row],[Datum předání stroje]]-Tabulka1[[#This Row],[Zahájení opravy Datum/Čas]] -> 00:00:00 | K165: =Tabulka1[[#This Row],[Datum předání stroje]]-Tabulka1[[#This Row],[Vystavení a převzetí Datum/Čas]] -> 00:00:00
I166: =Tabulka1[[#This Row],[Zahájení opravy Datum/Čas]]-Tabulka1[[#This Row],[Vystavení a převzetí Datum/Čas]] -> 00:00:00 | J166: =Tabulka1[[#This Row],[Datum předání stroje]]-Tabulka1[[#This Row],[Zahájení opravy Datum/Čas]] -> 00:00:00 | K166: =Tabulka1[[#This Row],[Datum předání stroje]]-Tabulka1[[#This Row],[Vystavení a převzetí Datum/Čas]] -> 00:00:00
I167: =Tabulka1[[#This Row],[Zahájení opravy Datum/Čas]]-Tabulka1[[#This Row],[Vystavení a převzetí Datum/Čas]] -> 00:00:00 | J167: =Tabulka1[[#This Row],[Datum předání stroje]]-Tabulka1[[#This Row],[Zahájení opravy Datum/Čas]] -> 00:00:00 | K167: =Tabulka1[[#This Row],[Datum předání stroje]]-Tabulka1[[#This Row],[Vystavení a převzetí Datum/Čas]] -> 00:00:00
I168: =Tabulka1[[#This Row],[Zahájení opravy Datum/Čas]]-Tabulka1[[#This Row],[Vystavení a převzetí Datum/Čas]] -> 00:00:00 | J168: =Tabulka1[[#This Row],[Datum předání stroje]]-Tabulka1[[#This Row],[Zahájení opravy Datum/Čas]] -> 00:00:00 | K168: =Tabulka1[[#This Row],[Datum předání stroje]]-Tabulka1[[#This Row],[Vystavení a převzetí Datum/Čas]] -> 00:00:00
I169: =Tabulka1[[#This Row],[Zahájení opravy Datum/Čas]]-Tabulka1[[#This Row],[Vystavení a převzetí Datum/Čas]] -> 00:00:00 | J169: =Tabulka1[[#This Row],[Datum předání stroje]]-Tabulka1[[#This Row],[Zahájení opravy Datum/Čas]] -> 00:00:00 | K169: =Tabulka1[[#This Row],[Datum předání stroje]]-Tabulka1[[#This Row],[Vystavení a převzetí Datum/Čas]] -> 00:00:00
I170: =Tabulka1[[#This Row],[Zahájení opravy Datum/Čas]]-Tabulka1[[#This Row],[Vystavení a převzetí Datum/Čas]] -> 00:00:00 | J170: =Tabulka1[[#This Row],[Datum předání stroje]]-Tabulka1[[#This Row],[Zahájení opravy Datum/Čas]] -> 00:00:00 | K170: =Tabulka1[[#This Row],[Datum předání stroje]]-Tabulka1[[#This Row],[Vystavení a převzetí Datum/Čas]] -> 00:00:00
I171: =Tabulka1[[#This Row],[Zahájení opravy Datum/Čas]]-Tabulka1[[#This Row],[Vystavení a převzetí Datum/Čas]] -> 00:00:00 | J171: =Tabulka1[[#This Row],[Datum předání stroje]]-Tabulka1[[#This Row],[Zahájení opravy Datum/Čas]] -> 00:00:00 | K171: =Tabulka1[[#This Row],[Datum předání stroje]]-Tabulka1[[#This Row],[Vystavení a převzetí Datum/Čas]] -> 00:00:00
I172: =Tabulka1[[#This Row],[Zahájení opravy Datum/Čas]]-Tabulka1[[#This Row],[Vystavení a převzetí Datum/Čas]] -> 00:00:00 | J172: =Tabulka1[[#This Row],[Datum předání stroje]]-Tabulka1[[#This Row],[Zahájení opravy Datum/Čas]] -> 00:00:00 | K172: =Tabulka1[[#This Row],[Datum předání stroje]]-Tabulka1[[#This Row],[Vystavení a převzetí Datum/Čas]] -> 00:00:00
I173: =Tabulka1[[#This Row],[Zahájení opravy Datum/Čas]]-Tabulka1[[#This Row],[Vystavení a převzetí Datum/Čas]] -> 00:00:00 | J173: =Tabulka1[[#This Row],[Datum předání stroje]]-Tabulka1[[#This Row],[Zahájení opravy Datum/Čas]] -> 00:00:00 | K173: =Tabulka1[[#This Row],[Datum předání stroje]]-Tabulka1[[#This Row],[Vystavení a převzetí Datum/Čas]] -> 00:00:00
I174: =Tabulka1[[#This Row],[Zahájení opravy Datum/Čas]]-Tabulka1[[#This Row],[Vystavení a převzetí Datum/Čas]] -> 00:00:00 | J174: =Tabulka1[[#This Row],[Datum předání stroje]]-Tabulka1[[#This Row],[Zahájení opravy Datum/Čas]] -> 00:00:00 | K174: =Tabulka1[[#This Row],[Datum předání stroje]]-Tabulka1[[#This Row],[Vystavení a převzetí Datum/Čas]] -> 00:00:00
I175: =Tabulka1[[#This Row],[Zahájení opravy Datum/Čas]]-Tabulka1[[#This Row],[Vystavení a převzetí Datum/Čas]] -> 00:00:00 | J175: =Tabulka1[[#This Row],[Datum předání stroje]]-Tabulka1[[#This Row],[Zahájení opravy Datum/Čas]] -> 00:00:00 | K175: =Tabulka1[[#This Row],[Datum předání stroje]]-Tabulka1[[#This Row],[Vystavení a převzetí Datum/Čas]] -> 00:00:00
I176: =Tabulka1[[#This Row],[Zahájení opravy Datum/Čas]]-Tabulka1[[#This Row],[Vystavení a převzetí Datum/Čas]] -> 00:00:00 | J176: =Tabulka1[[#This Row],[Datum předání stroje]]-Tabulka1[[#This Row],[Zahájení opravy Datum/Čas]] -> 00:00:00 | K176: =Tabulka1[[#This Row],[Datum předání stroje]]-Tabulka1[[#This Row],[Vystavení a převzetí Datum/Čas]] -> 00:00:00
I177: =Tabulka1[[#This Row],[Zahájení opravy Datum/Čas]]-Tabulka1[[#This Row],[Vystavení a převzetí Datum/Čas]] -> 00:00:00 | J177: =Tabulka1[[#This Row],[Datum předání stroje]]-Tabulka1[[#This Row],[Zahájení opravy Datum/Čas]] -> 00:00:00 | K177: =Tabulka1[[#This Row],[Datum předání stroje]]-Tabulka1[[#This Row],[Vystavení a převzetí Datum/Čas]] -> 00:00:00
I178: =Tabulka1[[#This Row],[Zahájení opravy Datum/Čas]]-Tabulka1[[#This Row],[Vystavení a převzetí Datum/Čas]] -> 00:00:00 | J178: =Tabulka1[[#This Row],[Datum předání stroje]]-Tabulka1[[#This Row],[Zahájení opravy Datum/Čas]] -> 00:00:00 | K178: =Tabulka1[[#This Row],[Datum předání stroje]]-Tabulka1[[#This Row],[Vystavení a převzetí Datum/Čas]] -> 00:00:00
I179: =Tabulka1[[#This Row],[Zahájení opravy Datum/Čas]]-Tabulka1[[#This Row],[Vystavení a převzetí Datum/Čas]] -> 00:00:00 | J179: =Tabulka1[[#This Row],[Datum předání stroje]]-Tabulka1[[#This Row],[Zahájení opravy Datum/Čas]] -> 00:00:00 | K179: =Tabulka1[[#This Row],[Datum předání stroje]]-Tabulka1[[#This Row],[Vystavení a převzetí Datum/Čas]] -> 00:00:00
I180: =Tabulka1[[#This Row],[Zahájení opravy Datum/Čas]]-Tabulka1[[#This Row],[Vystavení a převzetí Datum/Čas]] -> 00:00:00 | J180: =Tabulka1[[#This Row],[Datum předání stroje]]-Tabulka1[[#This Row],[Zahájení opravy Datum/Čas]] -> 00:00:00 | K180: =Tabulka1[[#This Row],[Datum předání stroje]]-Tabulka1[[#This Row],[Vystavení a převzetí Datum/Čas]] -> 00:00:00
I181: =Tabulka1[[#This Row],[Zahájení opravy Datum/Čas]]-Tabulka1[[#This Row],[Vystavení a převzetí Datum/Čas]] -> 00:00:00 | J181: =Tabulka1[[#This Row],[Datum předání stroje]]-Tabulka1[[#This Row],[Zahájení opravy Datum/Čas]] -> 00:00:00 | K181: =Tabulka1[[#This Row],[Datum předání stroje]]-Tabulka1[[#This Row],[Vystavení a převzetí Datum/Čas]] -> 00:00:00
I182: =Tabulka1[[#This Row],[Zahájení opravy Datum/Čas]]-Tabulka1[[#This Row],[Vystavení a převzetí Datum/Čas]] -> 00:00:00 | J182: =Tabulka1[[#This Row],[Datum předání stroje]]-Tabulka1[[#This Row],[Zahájení opravy Datum/Čas]] -> 00:00:00 | K182: =Tabulka1[[#This Row],[Datum předání stroje]]-Tabulka1[[#This Row],[Vystavení a převzetí Datum/Čas]] -> 00:00:00
I183: =Tabulka1[[#This Row],[Zahájení opravy Datum/Čas]]-Tabulka1[[#This Row],[Vystavení a převzetí Datum/Čas]] -> 00:00:00 | J183: =Tabulka1[[#This Row],[Datum předání stroje]]-Tabulka1[[#This Row],[Zahájení opravy Datum/Čas]] -> 00:00:00 | K183: =Tabulka1[[#This Row],[Datum předání stroje]]-Tabulka1[[#This Row],[Vystavení a převzetí Datum/Čas]] -> 00:00:00
I184: =Tabulka1[[#This Row],[Zahájení opravy Datum/Čas]]-Tabulka1[[#This Row],[Vystavení a převzetí Datum/Čas]] -> 00:00:00 | J184: =Tabulka1[[#This Row],[Datum předání stroje]]-Tabulka1[[#This Row],[Zahájení opravy Datum/Čas]] -> 00:00:00 | K184: =Tabulka1[[#This Row],[Datum předání stroje]]-Tabulka1[[#This Row],[Vystavení a převzetí Datum/Čas]] -> 00:00:00
I185: =Tabulka1[[#This Row],[Zahájení opravy Datum/Čas]]-Tabulka1[[#This Row],[Vystavení a převzetí Datum/Čas]] -> 00:00:00 | J185: =Tabulka1[[#This Row],[Datum předání stroje]]-Tabulka1[[#This Row],[Zahájení opravy Datum/Čas]] -> 00:00:00 | K185: =Tabulka1[[#This Row],[Datum předání stroje]]-Tabulka1[[#This Row],[Vystavení a převzetí Datum/Čas]] -> 00:00:00
I186: =Tabulka1[[#This Row],[Zahájení opravy Datum/Čas]]-Tabulka1[[#This Row],[Vystavení a převzetí Datum/Čas]] -> 00:00:00 | J186: =Tabulka1[[#This Row],[Datum předání stroje]]-Tabulka1[[#This Row],[Zahájení opravy Datum/Čas]] -> 00:00:00 | K186: =Tabulka1[[#This Row],[Datum předání stroje]]-Tabulka1[[#This Row],[Vystavení a převzetí Datum/Čas]] -> 00:00:00
I187: =Tabulka1[[#This Row],[Zahájení opravy Datum/Čas]]-Tabulka1[[#This Row],[Vystavení a převzetí Datum/Čas]] -> 00:00:00 | J187: =Tabulka1[[#This Row],[Datum předání stroje]]-Tabulka1[[#This Row],[Zahájení opravy Datum/Čas]] -> 00:00:00 | K187: =Tabulka1[[#This Row],[Datum předání stroje]]-Tabulka1[[#This Row],[Vystavení a převzetí Datum/Čas]] -> 00:00:00
I188: =Tabulka1[[#This Row],[Zahájení opravy Datum/Čas]]-Tabulka1[[#This Row],[Vystavení a převzetí Datum/Čas]] -> 00:00:00 | J188: =Tabulka1[[#This Row],[Datum předání stroje]]-Tabulka1[[#This Row],[Zahájení opravy Datum/Čas]] -> 00:00:00 | K188: =Tabulka1[[#This Row],[Datum předání stroje]]-Tabulka1[[#This Row],[Vystavení a převzetí Datum/Čas]] -> 00:00:00
I189: =Tabulka1[[#This Row],[Zahájení opravy Datum/Čas]]-Tabulka1[[#This Row],[Vystavení a převzetí Datum/Čas]] -> 00:00:00 | J189: =Tabulka1[[#This Row],[Datum předání stroje]]-Tabulka1[[#This Row],[Zahájení opravy Datum/Čas]] -> 00:00:00 | K189: =Tabulka1[[#This Row],[Datum předání stroje]]-Tabulka1[[#This Row],[Vystavení a převzetí Datum/Čas]] -> 00:00:00
I190: =Tabulka1[[#This Row],[Zahájení opravy Datum/Čas]]-Tabulka1[[#This Row],[Vystavení a převzetí Datum/Čas]] -> 00:00:00 | J190: =Tabulka1[[#This Row],[Datum předání stroje]]-Tabulka1[[#This Row],[Zahájení opravy Datum/Čas]] -> 00:00:00 | K190: =Tabulka1[[#This Row],[Datum předání stroje]]-Tabulka1[[#This Row],[Vystavení a převzetí Datum/Čas]] -> 00:00:00
I191: =Tabulka1[[#This Row],[Zahájení opravy Datum/Čas]]-Tabulka1[[#This Row],[Vystavení a převzetí Datum/Čas]] -> 00:00:00 | J191: =Tabulka1[[#This Row],[Datum předání stroje]]-Tabulka1[[#This Row],[Zahájení opravy Datum/Čas]] -> 00:00:00 | K191: =Tabulka1[[#This Row],[Datum předání stroje]]-Tabulka1[[#This Row],[Vystavení a převzetí Datum/Čas]] -> 00:00:00
I192: =Tabulka1[[#This Row],[Zahájení opravy Datum/Čas]]-Tabulka1[[#This Row],[Vystavení a převzetí Datum/Čas]] -> 00:00:00 | J192: =Tabulka1[[#This Row],[Datum předání stroje]]-Tabulka1[[#This Row],[Zahájení opravy Datum/Čas]] -> 00:00:00 | K192: =Tabulka1[[#This Row],[Datum předání stroje]]-Tabulka1[[#This Row],[Vystavení a převzetí Datum/Čas]] -> 00:00:00
I193: =Tabulka1[[#This Row],[Zahájení opravy Datum/Čas]]-Tabulka1[[#This Row],[Vystavení a převzetí Datum/Čas]] -> 00:00:00 | J193: =Tabulka1[[#This Row],[Datum předání stroje]]-Tabulka1[[#This Row],[Zahájení opravy Datum/Čas]] -> 00:00:00 | K193: =Tabulka1[[#This Row],[Datum předání stroje]]-Tabulka1[[#This Row],[Vystavení a převzetí Datum/Čas]] -> 00:00:00
I194: =Tabulka1[[#This Row],[Zahájení opravy Datum/Čas]]-Tabulka1[[#This Row],[Vystavení a převzetí Datum/Čas]] -> 00:00:00 | J194: =Tabulka1[[#This Row],[Datum předání stroje]]-Tabulka1[[#This Row],[Zahájení opravy Datum/Čas]] -> 00:00:00 | K194: =Tabulka1[[#This Row],[Datum předání stroje]]-Tabulka1[[#This Row],[Vystavení a převzetí Datum/Čas]] -> 00:00:00
I195: =Tabulka1[[#This Row],[Zahájení opravy Datum/Čas]]-Tabulka1[[#This Row],[Vystavení a převzetí Datum/Čas]] -> 00:00:00 | J195: =Tabulka1[[#This Row],[Datum předání stroje]]-Tabulka1[[#This Row],[Zahájení opravy Datum/Čas]] -> 00:00:00 | K195: =Tabulka1[[#This Row],[Datum předání stroje]]-Tabulka1[[#This Row],[Vystavení a převzetí Datum/Čas]] -> 00:00:00
I196: =Tabulka1[[#This Row],[Zahájení opravy Datum/Čas]]-Tabulka1[[#This Row],[Vystavení a převzetí Datum/Čas]] -> 00:00:00 | J196: =Tabulka1[[#This Row],[Datum předání stroje]]-Tabulka1[[#This Row],[Zahájení opravy Datum/Čas]] -> 00:00:00 | K196: =Tabulka1[[#This Row],[Datum předání stroje]]-Tabulka1[[#This Row],[Vystavení a převzetí Datum/Čas]] -> 00:00:00 | O196: =IF($N196>=0.1,"Y","") ->  | P196: =IF($N196>=0.15,"Y","") ->  | Q196: =IF($N196>=0.2,"Y","") ->  | R196: =IF($N196>=0.25,"Y","") ->  | S196: =IF($N196>=0.3,"Y","") ->  | T196: =IF($N196>=0.35,"Y","") ->  | U196: =IF($N196>=0.4,"Y","") ->  | V196: =IF($N196>=0.45,"Y","") ->  | W196: =IF($N196>=0.5,"Y","") ->  | X196: =IF($N196>=0.55,"X","") ->  | Y196: =IF($N196>=0.6,"X","") ->  | Z196: =IF($N196>=0.65,"X","") ->  | AA196: =IF($N196>=0.7,"X","") ->  | AB196: =IF($N196>=0.75,"X","") ->  | AC196: =IF($N196>=0.8,"K","") ->  | AD196: =IF($N196>=0.85,"K","") ->  | AE196: =IF($N196>=0.9,"K","") ->  | AF196: =IF($N196>=0.95,"K","") ->  | AG196: =IF($N196>=1,"K","") -> 
I197: =Tabulka1[[#This Row],[Zahájení opravy Datum/Čas]]-Tabulka1[[#This Row],[Vystavení a převzetí Datum/Čas]] -> 00:00:00 | J197: =Tabulka1[[#This Row],[Datum předání stroje]]-Tabulka1[[#This Row],[Zahájení opravy Datum/Čas]] -> 00:00:00 | K197: =Tabulka1[[#This Row],[Datum předání stroje]]-Tabulka1[[#This Row],[Vystavení a převzetí Datum/Čas]] -> 00:00:00
I198: =Tabulka1[[#This Row],[Zahájení opravy Datum/Čas]]-Tabulka1[[#This Row],[Vystavení a převzetí Datum/Čas]] -> 00:00:00 | J198: =Tabulka1[[#This Row],[Datum předání stroje]]-Tabulka1[[#This Row],[Zahájení opravy Datum/Čas]] -> 00:00:00 | K198: =Tabulka1[[#This Row],[Datum předání stroje]]-Tabulka1[[#This Row],[Vystavení a převzetí Datum/Čas]] -> 00:00:00
I199: =Tabulka1[[#This Row],[Zahájení opravy Datum/Čas]]-Tabulka1[[#This Row],[Vystavení a převzetí Datum/Čas]] -> 00:00:00 | J199: =Tabulka1[[#This Row],[Datum předání stroje]]-Tabulka1[[#This Row],[Zahájení opravy Datum/Čas]] -> 00:00:00 | K199: =Tabulka1[[#This Row],[Datum předání stroje]]-Tabulka1[[#This Row],[Vystavení a převzetí Datum/Čas]] -> 00:00:00
I200: =Tabulka1[[#This Row],[Zahájení opravy Datum/Čas]]-Tabulka1[[#This Row],[Vystavení a převzetí Datum/Čas]] -> 00:00:00 | J200: =Tabulka1[[#This Row],[Datum předání stroje]]-Tabulka1[[#This Row],[Zahájení opravy Datum/Čas]] -> 00:00:00 | K200: =Tabulka1[[#This Row],[Datum předání stroje]]-Tabulka1[[#This Row],[Vystavení a převzetí Datum/Čas]] -> 00:00:00
... 2050 more rows

Sheet List1
